Workbook

Sheet intro
B1: ustaw uruchamianie makr
B2: enable macros
C4: Wpisz imię i nazwisko (enter your Name)
C6: wciśnij enter (press enter)
C7: zmień język / change language | H7: 1.lista pracowników statystyki funkcjami
C8: Polski | H8: 2.statystyki wierszem podsumowań
C9: wciśnij przycisk poniżej (click the button below) | H9: 3. statystyki tabelą przestawną

Sheet intro1
G3: Dimensions group the data along natural categories and consist of one or more levels. Each level | AG3: Słownik :
G4: represents a different grouping within the same dimension. For example, a time dimension can include | AF4: : | AG4: miara - nazwana kolumna zawierająca zazwyczaj liczby, zazwyczaj różniące się
G5: levels such as years, months, and days. Or an organizatio | AG5: od siebie. Rzadkie powtórzenia są raczej przypadkowe. Najpowszechniejsze
G6: Measures are the cube data values that are summarized and analyzed. A measure is the combination of | AG6: agregowanie miary to suma takich liczb.
G7: a numeric input column with a roll-up rule or statistic. Measures are loaded from the data | AG7: wymiar - nazwana kolumna zawiarająca zazwyczaj teksty, zazwyczaj powtarzające
G8: source that you summarize from. One input column can load one or | AG8: się, najczęściej każde powtórzenie dotyczy tego samego obiektu
G9: id - LESS INTERESTING FOR PIVOT TABLE ANALYSIS | AG9: pole mniej istotne z punktu widzenia tabel przestawnych - pole bez powtórzeń ,
G10: after | H10: http://support.sas.com/documentation/cdl/en/olapug/59574/HTML/default/viewer.htm#a002254427.htm | AG10: pole nie będące miarą, pole klucz podstawowy
AB11: zrób zadania
F12: Pattern 1 | G12: 1a. make a statement one-dimensional: the dimension (month) the measure (total sales) | AF12: Wzorzec 1 | AG12: 1a. zrób zestawienie jednowymiarowe: wymiar(miesiąc) miara (suma sprzedaż)
G13: 1b. make a statement one-dimensional: size (person) - the measure (total sales) | AG13: 1b. zrób zestawienie jednowymiarowe: wymiar(osoba) - miara (suma sprzedaż)
G14: 1c. make a statement two-dimensional: the dimension (month) dimension (person) - the measure (total: sales) | AG14: 1c. zrób zestawienie dwuwymiarowe: wymiar(miesiąc) wymiar (osoba) - miara (suma: sprzedaż)
F15: Pattern 2 | G15: 2 make a statement (dimensionless) indicating sum, average, minimum and maximum | AF15: Wzorzec 2 | AG15: 2. zrób zestawienie bezwymiarowe podające sumę, średnią, minimum i maksimum
F16: Pattern 3 | G16: 3 make a pivot table nad the histogram for the column sales in buckets of 50 thousand. Start from point zero. | AF16: Wzorzec 3 | AG16: 3. zrób tabelę przestawną "pod histogram" dla kolumny sprzedaż w przedziałach co 50 tys. Zaczynaj od zera.
A17: ID | B17: Month | C17: Sales Rep | D17: Sales | AA17: ID | AB17: miesiąc | AC17: osoba | AD17: sprzedaż | AP17: =ZAOKR(ROZKŁAD.NORMALNY.ODW(LOS();300000;100000);-4)
A18: 1 | B18: Jan | C18: Bob | D18: 300000 | AA18: 1 | AB18: Kwi | AC18: Robert | AD18: 300000
A19: 2 | B19: Feb | C19: Bob | D19: 450000 | AA19: 2 | AB19: Sie | AC19: Robert | AD19: 230000 | AF19: 1a
A20: 3 | B20: Mar | C20: Bob | D20: 270000 | AA20: 3 | AB20: Gru | AC20: Robert | AD20: 390000
A21: 4 | B21: Apr | C21: Bob | D21: 300000 | AA21: 4 | AB21: Lut | AC21: Robert | AD21: 450000
A22: 5 | B22: May | C22: Bob | D22: 340000 | AA22: 5 | AB22: Sty | AC22: Robert | AD22: 300000
A23: 6 | B23: Jun | C23: Bob | D23: 240000 | AA23: 6 | AB23: Lip | AC23: Robert | AD23: 340000
A24: 7 | B24: Jul | C24: Bob | D24: 340000 | AA24: 7 | AB24: Cze | AC24: Robert | AD24: 240000
A25: 8 | B25: Aug | C25: Bob | D25: 230000 | AA25: 8 | AB25: Mar | AC25: Robert | AD25: 270000
A26: 9 | B26: Sep | C26: Bob | D26: 260000 | AA26: 9 | AB26: Maj | AC26: Robert | AD26: 340000
A27: 10 | B27: Oct | C27: Bob | D27: 310000 | AA27: 10 | AB27: Lis | AC27: Robert | AD27: 300000
A28: 11 | B28: Nov | C28: Bob | D28: 300000 | AA28: 11 | AB28: Paź | AC28: Robert | AD28: 310000
A29: 12 | B29: Dec | C29: Bob | D29: 390000 | AA29: 12 | AB29: Wrz | AC29: Robert | AD29: 260000
A30: 13 | B30: Jan | C30: Frank | D30: 340000 | AA30: 13 | AB30: Kwi | AC30: Franek | AD30: 270000
A31: 14 | B31: Feb | C31: Frank | D31: 380000 | AA31: 14 | AB31: Sie | AC31: Franek | AD31: 360000
A32: 15 | B32: Mar | C32: Frank | D32: 530000 | AA32: 15 | AB32: Gru | AC32: Franek | AD32: 280000
A33: 16 | B33: Apr | C33: Frank | D33: 270000 | AA33: 16 | AB33: Lut | AC33: Franek | AD33: 380000
A34: 17 | B34: May | C34: Frank | D34: 170000 | AA34: 17 | AB34: Sty | AC34: Franek | AD34: 340000
A35: 18 | B35: Jun | C35: Frank | D35: 280000 | AA35: 18 | AB35: Lip | AC35: Franek | AD35: 20000
A36: 19 | B36: Jul | C36: Frank | D36: 20000 | AA36: 19 | AB36: Cze | AC36: Franek | AD36: 280000 | AF36: 1b
A37: 20 | B37: Aug | C37: Frank | D37: 360000 | AA37: 20 | AB37: Mar | AC37: Franek | AD37: 530000
A38: 21 | B38: Sep | C38: Frank | D38: 420000 | AA38: 21 | AB38: Maj | AC38: Franek | AD38: 170000
A39: 22 | B39: Oct | C39: Frank | D39: 340000 | AA39: 22 | AB39: Lis | AC39: Franek | AD39: 360000
A40: 23 | B40: Nov | C40: Frank | D40: 360000 | AA40: 23 | AB40: Paź | AC40: Franek | AD40: 340000
A41: 24 | B41: Dec | C41: Frank | D41: 280000 | AA41: 24 | AB41: Wrz | AC41: Franek | AD41: 420000
A42: 25 | B42: Feb | C42: Jill | D42: 510000 | AA42: 25 | AB42: Kwi | AC42: Joanna | AD42: 260000
A43: 26 | B43: Mar | C43: Jill | D43: 430000 | AA43: 26 | AB43: Sie | AC43: Joanna | AD43: 340000
A44: 27 | B44: Apr | C44: Jill | D44: 260000 | AA44: 27 | AB44: Gru | AC44: Joanna | AD44: 230000
A45: 28 | B45: May | C45: Jill | D45: 300000 | AA45: 28 | AB45: Lut | AC45: Joanna | AD45: 510000
A46: 29 | B46: Jun | C46: Jill | D46: 240000 | AA46: 29 | AB46: Lip | AC46: Joanna | AD46: 290000
A47: 30 | B47: Jul | C47: Jill | D47: 290000 | AA47: 30 | AB47: Cze | AC47: Joanna | AD47: 240000
A48: 31 | B48: Aug | C48: Jill | D48: 340000 | AA48: 31 | AB48: Mar | AC48: Joanna | AD48: 430000
A49: 32 | B49: Sep | C49: Jill | D49: 190000 | AA49: 32 | AB49: Maj | AC49: Joanna | AD49: 300000
A50: 33 | B50: Oct | C50: Jill | D50: 280000 | AA50: 33 | AB50: Lis | AC50: Joanna | AD50: 180000
A51: 34 | B51: Nov | C51: Jill | D51: 180000 | AA51: 34 | AB51: Paź | AC51: Joanna | AD51: 280000
A52: 35 | B52: Dec | C52: Jill | D52: 230000 | AA52: 35 | AB52: Wrz | AC52: Joanna | AD52: 190000
A53: 36 | B53: Jan | C53: Mary | D53: 280000 | AA53: 36 | AB53: Kwi | AC53: Maria | AD53: 310000 | AF53: 1c
A54: 37 | B54: Feb | C54: Mary | D54: 180000 | AA54: 37 | AB54: Sie | AC54: Maria | AD54: 150000
A55: 38 | B55: Mar | C55: Mary | D55: 320000 | AA55: 38 | AB55: Gru | AC55: Maria | AD55: 250000
A56: 39 | B56: Apr | C56: Mary | D56: 310000 | AA56: 39 | AB56: Lut | AC56: Maria | AD56: 180000
A57: 40 | B57: May | C57: Mary | D57: 330000 | AA57: 40 | AB57: Sty | AC57: Maria | AD57: 280000
A58: 41 | B58: Jun | C58: Mary | D58: 400000 | AA58: 41 | AB58: Lip | AC58: Maria | AD58: 350000
A59: 42 | B59: Jul | C59: Mary | D59: 350000 | AA59: 42 | AB59: Cze | AC59: Maria | AD59: 400000
A60: 43 | B60: Aug | C60: Mary | D60: 150000 | AA60: 43 | AB60: Mar | AC60: Maria | AD60: 320000
A61: 44 | B61: Sep | C61: Mary | D61: 140000 | AA61: 44 | AB61: Maj | AC61: Maria | AD61: 330000
A62: 45 | B62: Oct | C62: Mary | D62: 250000 | AA62: 45 | AB62: Lis | AC62: Maria | AD62: 430000
A63: 46 | B63: Nov | C63: Mary | D63: 430000 | AA63: 46 | AB63: Paź | AC63: Maria | AD63: 250000
A64: 47 | B64: Dec | C64: Mary | D64: 250000 | AA64: 47 | AB64: Wrz | AC64: Maria | AD64: 140000
A65: 48 | B65: Jan | C65: Paul | D65: 370000 | AA65: 48 | AB65: Kwi | AC65: Paweł | AD65: 430000
A66: 49 | B66: Feb | C66: Paul | D66: 300000 | AA66: 49 | AB66: Sie | AC66: Paweł | AD66: 300000
A67: 50 | B67: Mar | C67: Paul | D67: 260000 | AA67: 50 | AB67: Gru | AC67: Paweł | AD67: 470000
A68: 51 | B68: Apr | C68: Paul | D68: 430000 | AA68: 51 | AB68: Lut | AC68: Paweł | AD68: 300000
A69: 52 | B69: May | C69: Paul | D69: 320000 | AA69: 52 | AB69: Sty | AC69: Paweł | AD69: 370000
A70: 53 | B70: Jun | C70: Paul | D70: 300000 | AA70: 53 | AB70: Lip | AC70: Paweł | AD70: 360000 | AF70: 2.
A71: 54 | B71: Jul | C71: Paul | D71: 360000 | AA71: 54 | AB71: Cze | AC71: Paweł | AD71: 300000
A72: 55 | B72: Aug | C72: Paul | D72: 300000 | AA72: 55 | AB72: Mar | AC72: Paweł | AD72: 260000
A73: 56 | B73: Sep | C73: Paul | D73: 220000 | AA73: 56 | AB73: Maj | AC73: Paweł | AD73: 320000
A74: 57 | B74: Oct | C74: Paul | D74: 160000 | AA74: 57 | AB74: Lis | AC74: Paweł | AD74: 330000
A75: 58 | B75: Nov | C75: Paul | D75: 330000 | AA75: 58 | AB75: Paź | AC75: Paweł | AD75: 160000
A76: 59 | B76: Dec | C76: Paul | D76: 470000 | AA76: 59 | AB76: Wrz | AC76: Paweł | AD76: 220000
A77: 60 | B77: Jan | C77: Randy | D77: 250000 | AA77: 60 | AB77: Kwi | AC77: Rafał | AD77: 350000
A78: 61 | B78: Feb | C78: Randy | D78: 320000 | AA78: 61 | AB78: Sie | AC78: Rafał | AD78: 380000
A79: 62 | B79: Mar | C79: Randy | D79: 250000 | AA79: 62 | AB79: Gru | AC79: Rafał | AD79: 330000
A80: 63 | B80: Apr | C80: Randy | D80: 350000 | AA80: 63 | AB80: Lut | AC80: Rafał | AD80: 320000
A81: 64 | B81: May | C81: Randy | D81: 330000 | AA81: 64 | AB81: Sty | AC81: Rafał | AD81: 250000
A82: 65 | B82: Jun | C82: Randy | D82: 240000 | AA82: 65 | AB82: Lip | AC82: Rafał | AD82: 170000
A83: 66 | B83: Jul | C83: Randy | D83: 170000 | AA83: 66 | AB83: Cze | AC83: Rafał | AD83: 240000
A84: 67 | B84: Aug | C84: Randy | D84: 380000 | AA84: 67 | AB84: Mar | AC84: Rafał | AD84: 250000
A85: 68 | B85: Sep | C85: Randy | D85: 290000 | AA85: 68 | AB85: Maj | AC85: Rafał | AD85: 330000
A86: 69 | B86: Oct | C86: Randy | D86: 270000 | AA86: 69 | AB86: Lis | AC86: Rafał | AD86: 240000
A87: 70 | B87: Nov | C87: Randy | D87: 240000 | AA87: 70 | AB87: Paź | AC87: Rafał | AD87: 270000 | AF87: 3.
A88: 71 | B88: Dec | C88: Randy | D88: 330000 | AA88: 71 | AB88: Wrz | AC88: Rafał | AD88: 290000

Sheet intro2
B2: In the table below:
B3: how many dimensions do you see? | AA3: W tabeli poniżej:
AA4: ile widzisz wymiarów
B5: how many metrics do you see?
AA6: ile widzisz miar
B7: how many the less important fields for pivot tables do you see?
AA8: ile widzisz mniej istotnych pól dla tabel przestawnych
A10: ID | B10: date | C10: Sales Rep | D10: Sales | AA10: ID | AB10: dzień | AC10: osoba | AD10: sprzedaż
A11: 1 | B11: 2013-01-07 | C11: Bob | D11: =300000*(1/4) -> 75000 | AA11: 1 | AB11: 2013-01-07 | AC11: Robert | AD11: =300000*(1/4) -> 75000 | AG11: Uzupełnienie
A12: 2 | B12: 2013-02-04 | C12: Bob | D12: =230000*(1/4) -> 57500 | G12: 1 make a pivot table two-dimensional: the dimension (month) the dimension (person) - the measure (sum of: sales) | AA12: 2 | AB12: 2013-02-04 | AC12: Robert | AD12: =230000*(1/4) -> 57500 | AH12: 1. zrób zestawienie dwuwymiarowe: wymiar(miesiąc) wymiar (osoba) - miara (suma: sprzedaż)
A13: 3 | B13: 2013-03-04 | C13: Bob | D13: =390000*(1/4) -> 97500 | AA13: 3 | AB13: 2013-03-04 | AC13: Robert | AD13: =390000*(1/4) -> 97500
A14: 4 | B14: 2013-04-08 | C14: Bob | D14: =450000*(1/4) -> 112500 | AA14: 4 | AB14: 2013-04-08 | AC14: Robert | AD14: =450000*(1/4) -> 112500
A15: 5 | B15: 2013-05-06 | C15: Bob | D15: =300000*(1/4) -> 75000 | AA15: 5 | AB15: 2013-05-06 | AC15: Robert | AD15: =300000*(1/4) -> 75000
A16: 6 | B16: 2013-06-03 | C16: Bob | D16: =340000*(1/4) -> 85000 | AA16: 6 | AB16: 2013-06-03 | AC16: Robert | AD16: =340000*(1/4) -> 85000
A17: 7 | B17: 2013-07-08 | C17: Bob | D17: =240000*(1/4) -> 60000 | AA17: 7 | AB17: 2013-07-08 | AC17: Robert | AD17: =240000*(1/4) -> 60000
A18: 8 | B18: 2013-08-05 | C18: Bob | D18: =270000*(1/4) -> 67500 | AA18: 8 | AB18: 2013-08-05 | AC18: Robert | AD18: =270000*(1/4) -> 67500
A19: 9 | B19: 2013-09-02 | C19: Bob | D19: =340000*(1/4) -> 85000 | AA19: 9 | AB19: 2013-09-02 | AC19: Robert | AD19: =340000*(1/4) -> 85000
A20: 10 | B20: 2013-10-07 | C20: Bob | D20: =300000*(1/4) -> 75000 | AA20: 10 | AB20: 2013-10-07 | AC20: Robert | AD20: =300000*(1/4) -> 75000
A21: 11 | B21: 2013-11-04 | C21: Bob | D21: =310000*(1/4) -> 77500 | AA21: 11 | AB21: 2013-11-04 | AC21: Robert | AD21: =310000*(1/4) -> 77500
A22: 12 | B22: 2013-12-02 | C22: Bob | D22: =260000*(1/4) -> 65000 | AA22: 12 | AB22: 2013-12-02 | AC22: Robert | AD22: =260000*(1/4) -> 65000
A23: 13 | B23: 2013-01-07 | C23: Frank | D23: =270000*(1/4) -> 67500 | AA23: 13 | AB23: 2013-01-07 | AC23: Franek | AD23: =270000*(1/4) -> 67500
A24: 14 | B24: 2013-02-04 | C24: Frank | D24: =360000*(1/4) -> 90000 | AA24: 14 | AB24: 2013-02-04 | AC24: Franek | AD24: =360000*(1/4) -> 90000
A25: 15 | B25: 2013-03-04 | C25: Frank | D25: =280000*(1/4) -> 70000 | AA25: 15 | AB25: 2013-03-04 | AC25: Franek | AD25: =280000*(1/4) -> 70000
A26: 16 | B26: 2013-04-08 | C26: Frank | D26: =380000*(1/4) -> 95000 | AA26: 16 | AB26: 2013-04-08 | AC26: Franek | AD26: =380000*(1/4) -> 95000
A27: 17 | B27: 2013-05-06 | C27: Frank | D27: =340000*(1/4) -> 85000 | AA27: 17 | AB27: 2013-05-06 | AC27: Franek | AD27: =340000*(1/4) -> 85000
A28: 18 | B28: 2013-06-03 | C28: Frank | D28: =20000*(1/4) -> 5000 | AA28: 18 | AB28: 2013-06-03 | AC28: Franek | AD28: =20000*(1/4) -> 5000
A29: 19 | B29: 2013-07-08 | C29: Frank | D29: =280000*(1/4) -> 70000 | AA29: 19 | AB29: 2013-07-08 | AC29: Franek | AD29: =280000*(1/4) -> 70000
A30: 20 | B30: 2013-08-05 | C30: Frank | D30: =530000*(1/4) -> 132500 | AA30: 20 | AB30: 2013-08-05 | AC30: Franek | AD30: =530000*(1/4) -> 132500
A31: 21 | B31: 2013-09-02 | C31: Frank | D31: =170000*(1/4) -> 42500 | AA31: 21 | AB31: 2013-09-02 | AC31: Franek | AD31: =170000*(1/4) -> 42500
A32: 22 | B32: 2013-10-07 | C32: Frank | D32: =360000*(1/4) -> 90000 | AA32: 22 | AB32: 2013-10-07 | AC32: Franek | AD32: =360000*(1/4) -> 90000
A33: 23 | B33: 2013-11-04 | C33: Frank | D33: =340000*(1/4) -> 85000 | AA33: 23 | AB33: 2013-11-04 | AC33: Franek | AD33: =340000*(1/4) -> 85000
A34: 24 | B34: 2013-12-02 | C34: Frank | D34: =420000*(1/4) -> 105000 | AA34: 24 | AB34: 2013-12-02 | AC34: Franek | AD34: =420000*(1/4) -> 105000
A35: 25 | B35: 2013-02-04 | C35: Jill | D35: =260000*(1/4) -> 65000 | AA35: 25 | AB35: 2013-02-04 | AC35: Joanna | AD35: =260000*(1/4) -> 65000
A36: 26 | B36: 2013-03-04 | C36: Jill | D36: =340000*(1/4) -> 85000 | AA36: 26 | AB36: 2013-03-04 | AC36: Joanna | AD36: =340000*(1/4) -> 85000
A37: 27 | B37: 2013-04-08 | C37: Jill | D37: =230000*(1/4) -> 57500 | AA37: 27 | AB37: 2013-04-08 | AC37: Joanna | AD37: =230000*(1/4) -> 57500
A38: 28 | B38: 2013-05-06 | C38: Jill | D38: =510000*(1/4) -> 127500 | AA38: 28 | AB38: 2013-05-06 | AC38: Joanna | AD38: =510000*(1/4) -> 127500
A39: 29 | B39: 2013-06-03 | C39: Jill | D39: =290000*(1/4) -> 72500 | AA39: 29 | AB39: 2013-06-03 | AC39: Joanna | AD39: =290000*(1/4) -> 72500
A40: 30 | B40: 2013-07-08 | C40: Jill | D40: =240000*(1/4) -> 60000 | AA40: 30 | AB40: 2013-07-08 | AC40: Joanna | AD40: =240000*(1/4) -> 60000
A41: 31 | B41: 2013-08-05 | C41: Jill | D41: =430000*(1/4) -> 107500 | AA41: 31 | AB41: 2013-08-05 | AC41: Joanna | AD41: =430000*(1/4) -> 107500
A42: 32 | B42: 2013-09-02 | C42: Jill | D42: =300000*(1/4) -> 75000 | AA42: 32 | AB42: 2013-09-02 | AC42: Joanna | AD42: =300000*(1/4) -> 75000
A43: 33 | B43: 2013-10-07 | C43: Jill | D43: =180000*(1/4) -> 45000 | AA43: 33 | AB43: 2013-10-07 | AC43: Joanna | AD43: =180000*(1/4) -> 45000
A44: 34 | B44: 2013-11-04 | C44: Jill | D44: =280000*(1/4) -> 70000 | AA44: 34 | AB44: 2013-11-04 | AC44: Joanna | AD44: =280000*(1/4) -> 70000
A45: 35 | B45: 2013-12-02 | C45: Jill | D45: =190000*(1/4) -> 47500 | AA45: 35 | AB45: 2013-12-02 | AC45: Joanna | AD45: =190000*(1/4) -> 47500
A46: 36 | B46: 2013-01-07 | C46: Mary | D46: =310000*(1/4) -> 77500 | AA46: 36 | AB46: 2013-01-07 | AC46: Maria | AD46: =310000*(1/4) -> 77500
A47: 37 | B47: 2013-02-04 | C47: Mary | D47: =150000*(1/4) -> 37500 | AA47: 37 | AB47: 2013-02-04 | AC47: Maria | AD47: =150000*(1/4) -> 37500
A48: 38 | B48: 2013-03-04 | C48: Mary | D48: =250000*(1/4) -> 62500 | AA48: 38 | AB48: 2013-03-04 | AC48: Maria | AD48: =250000*(1/4) -> 62500
A49: 39 | B49: 2013-04-08 | C49: Mary | D49: =180000*(1/4) -> 45000 | AA49: 39 | AB49: 2013-04-08 | AC49: Maria | AD49: =180000*(1/4) -> 45000
A50: 40 | B50: 2013-05-06 | C50: Mary | D50: =280000*(1/4) -> 70000 | AA50: 40 | AB50: 2013-05-06 | AC50: Maria | AD50: =280000*(1/4) -> 70000
A51: 41 | B51: 2013-06-03 | C51: Mary | D51: =350000*(1/4) -> 87500 | AA51: 41 | AB51: 2013-06-03 | AC51: Maria | AD51: =350000*(1/4) -> 87500
A52: 42 | B52: 2013-07-08 | C52: Mary | D52: =400000*(1/4) -> 100000 | AA52: 42 | AB52: 2013-07-08 | AC52: Maria | AD52: =400000*(1/4) -> 100000
A53: 43 | B53: 2013-08-05 | C53: Mary | D53: =320000*(1/4) -> 80000 | AA53: 43 | AB53: 2013-08-05 | AC53: Maria | AD53: =320000*(1/4) -> 80000
A54: 44 | B54: 2013-09-02 | C54: Mary | D54: =330000*(1/4) -> 82500 | AA54: 44 | AB54: 2013-09-02 | AC54: Maria | AD54: =330000*(1/4) -> 82500
A55: 45 | B55: 2013-10-07 | C55: Mary | D55: =430000*(1/4) -> 107500 | AA55: 45 | AB55: 2013-10-07 | AC55: Maria | AD55: =430000*(1/4) -> 107500
A56: 46 | B56: 2013-11-04 | C56: Mary | D56: =250000*(1/4) -> 62500 | AA56: 46 | AB56: 2013-11-04 | AC56: Maria | AD56: =250000*(1/4) -> 62500
A57: 47 | B57: 2013-12-02 | C57: Mary | D57: =140000*(1/4) -> 35000 | AA57: 47 | AB57: 2013-12-02 | AC57: Maria | AD57: =140000*(1/4) -> 35000
A58: 48 | B58: 2013-01-07 | C58: Paul | D58: =430000*(1/4) -> 107500 | AA58: 48 | AB58: 2013-01-07 | AC58: Paweł | AD58: =430000*(1/4) -> 107500
A59: 49 | B59: 2013-02-04 | C59: Paul | D59: =300000*(1/4) -> 75000 | AA59: 49 | AB59: 2013-02-04 | AC59: Paweł | AD59: =300000*(1/4) -> 75000
A60: 50 | B60: 2013-03-04 | C60: Paul | D60: =470000*(1/4) -> 117500 | AA60: 50 | AB60: 2013-03-04 | AC60: Paweł | AD60: =470000*(1/4) -> 117500
A61: 51 | B61: 2013-04-08 | C61: Paul | D61: =300000*(1/4) -> 75000 | AA61: 51 | AB61: 2013-04-08 | AC61: Paweł | AD61: =300000*(1/4) -> 75000
A62: 52 | B62: 2013-05-06 | C62: Paul | D62: =370000*(1/4) -> 92500 | AA62: 52 | AB62: 2013-05-06 | AC62: Paweł | AD62: =370000*(1/4) -> 92500
A63: 53 | B63: 2013-06-03 | C63: Paul | D63: =360000*(1/4) -> 90000 | AA63: 53 | AB63: 2013-06-03 | AC63: Paweł | AD63: =360000*(1/4) -> 90000
A64: 54 | B64: 2013-07-08 | C64: Paul | D64: =300000*(1/4) -> 75000 | AA64: 54 | AB64: 2013-07-08 | AC64: Paweł | AD64: =300000*(1/4) -> 75000
A65: 55 | B65: 2013-08-05 | C65: Paul | D65: =260000*(1/4) -> 65000 | AA65: 55 | AB65: 2013-08-05 | AC65: Paweł | AD65: =260000*(1/4) -> 65000
A66: 56 | B66: 2013-09-02 | C66: Paul | D66: =320000*(1/4) -> 80000 | AA66: 56 | AB66: 2013-09-02 | AC66: Paweł | AD66: =320000*(1/4) -> 80000
A67: 57 | B67: 2013-10-07 | C67: Paul | D67: =330000*(1/4) -> 82500 | AA67: 57 | AB67: 2013-10-07 | AC67: Paweł | AD67: =330000*(1/4) -> 82500
A68: 58 | B68: 2013-11-04 | C68: Paul | D68: =160000*(1/4) -> 40000 | AA68: 58 | AB68: 2013-11-04 | AC68: Paweł | AD68: =160000*(1/4) -> 40000
A69: 59 | B69: 2013-12-02 | C69: Paul | D69: =220000*(1/4) -> 55000 | AA69: 59 | AB69: 2013-12-02 | AC69: Paweł | AD69: =220000*(1/4) -> 55000
A70: 60 | B70: 2013-01-07 | C70: Randy | D70: =350000*(1/4) -> 87500 | AA70: 60 | AB70: 2013-01-07 | AC70: Rafał | AD70: =350000*(1/4) -> 87500
A71: 61 | B71: 2013-02-04 | C71: Randy | D71: =380000*(1/4) -> 95000 | AA71: 61 | AB71: 2013-02-04 | AC71: Rafał | AD71: =380000*(1/4) -> 95000
A72: 62 | B72: 2013-03-04 | C72: Randy | D72: =330000*(1/4) -> 82500 | AA72: 62 | AB72: 2013-03-04 | AC72: Rafał | AD72: =330000*(1/4) -> 82500
A73: 63 | B73: 2013-04-08 | C73: Randy | D73: =320000*(1/4) -> 80000 | AA73: 63 | AB73: 2013-04-08 | AC73: Rafał | AD73: =320000*(1/4) -> 80000
A74: 64 | B74: 2013-05-06 | C74: Randy | D74: =250000*(1/4) -> 62500 | AA74: 64 | AB74: 2013-05-06 | AC74: Rafał | AD74: =250000*(1/4) -> 62500
A75: 65 | B75: 2013-06-03 | C75: Randy | D75: =170000*(1/4) -> 42500 | AA75: 65 | AB75: 2013-06-03 | AC75: Rafał | AD75: =170000*(1/4) -> 42500
A76: 66 | B76: 2013-07-08 | C76: Randy | D76: =240000*(1/4) -> 60000 | AA76: 66 | AB76: 2013-07-08 | AC76: Rafał | AD76: =240000*(1/4) -> 60000
A77: 67 | B77: 2013-08-05 | C77: Randy | D77: =250000*(1/4) -> 62500 | AA77: 67 | AB77: 2013-08-05 | AC77: Rafał | AD77: =250000*(1/4) -> 62500
A78: 68 | B78: 2013-09-02 | C78: Randy | D78: =330000*(1/4) -> 82500 | AA78: 68 | AB78: 2013-09-02 | AC78: Rafał | AD78: =330000*(1/4) -> 82500
A79: 69 | B79: 2013-10-07 | C79: Randy | D79: =240000*(1/4) -> 60000 | AA79: 69 | AB79: 2013-10-07 | AC79: Rafał | AD79: =240000*(1/4) -> 60000
A80: 70 | B80: 2013-11-04 | C80: Randy | D80: =270000*(1/4) -> 67500 | AA80: 70 | AB80: 2013-11-04 | AC80: Rafał | AD80: =270000*(1/4) -> 67500
A81: 71 | B81: 2013-12-02 | C81: Randy | D81: =290000*(1/4) -> 72500 | AA81: 71 | AB81: 2013-12-02 | AC81: Rafał | AD81: =290000*(1/4) -> 72500
A82: 72 | B82: 2013-01-14 | C82: Bob | D82: =(300000*(1/4))-1500 -> 73500 | AA82: 72 | AB82: 2013-01-14 | AC82: Robert | AD82: =(300000*(1/4))-1500 -> 73500
A83: 73 | B83: 2013-02-11 | C83: Bob | D83: =(230000*(1/4))-1500 -> 56000 | AA83: 73 | AB83: 2013-02-11 | AC83: Robert | AD83: =(230000*(1/4))-1500 -> 56000
A84: 74 | B84: 2013-03-11 | C84: Bob | D84: =(390000*(1/4))-1500 -> 96000 | AA84: 74 | AB84: 2013-03-11 | AC84: Robert | AD84: =(390000*(1/4))-1500 -> 96000
A85: 75 | B85: 2013-04-15 | C85: Bob | D85: =(450000*(1/4))-1500 -> 111000 | AA85: 75 | AB85: 2013-04-15 | AC85: Robert | AD85: =(450000*(1/4))-1500 -> 111000
A86: 76 | B86: 2013-05-13 | C86: Bob | D86: =(300000*(1/4))-1500 -> 73500 | AA86: 76 | AB86: 2013-05-13 | AC86: Robert | AD86: =(300000*(1/4))-1500 -> 73500
A87: 77 | B87: 2013-06-10 | C87: Bob | D87: =(340000*(1/4))-1500 -> 83500 | AA87: 77 | AB87: 2013-06-10 | AC87: Robert | AD87: =(340000*(1/4))-1500 -> 83500
A88: 78 | B88: 2013-07-15 | C88: Bob | D88: =(240000*(1/4))-1500 -> 58500 | AA88: 78 | AB88: 2013-07-15 | AC88: Robert | AD88: =(240000*(1/4))-1500 -> 58500
A89: 79 | B89: 2013-08-12 | C89: Bob | D89: =(270000*(1/4))-1500 -> 66000 | AA89: 79 | AB89: 2013-08-12 | AC89: Robert | AD89: =(270000*(1/4))-1500 -> 66000
A90: 80 | B90: 2013-09-09 | C90: Bob | D90: =(340000*(1/4))-1500 -> 83500 | AA90: 80 | AB90: 2013-09-09 | AC90: Robert | AD90: =(340000*(1/4))-1500 -> 83500
A91: 81 | B91: 2013-10-14 | C91: Bob | D91: =(300000*(1/4))-1500 -> 73500 | AA91: 81 | AB91: 2013-10-14 | AC91: Robert | AD91: =(300000*(1/4))-1500 -> 73500
A92: 82 | B92: 2013-11-11 | C92: Bob | D92: =(310000*(1/4))-1500 -> 76000 | AA92: 82 | AB92: 2013-11-11 | AC92: Robert | AD92: =(310000*(1/4))-1500 -> 76000
A93: 83 | B93: 2013-12-09 | C93: Bob | D93: =(260000*(1/4))-1500 -> 63500 | AA93: 83 | AB93: 2013-12-09 | AC93: Robert | AD93: =(260000*(1/4))-1500 -> 63500
A94: 84 | B94: 2013-01-14 | C94: Frank | D94: =(270000*(1/4))-1500 -> 66000 | AA94: 84 | AB94: 2013-01-14 | AC94: Franek | AD94: =(270000*(1/4))-1500 -> 66000
A95: 85 | B95: 2013-02-11 | C95: Frank | D95: =(360000*(1/4))-1500 -> 88500 | AA95: 85 | AB95: 2013-02-11 | AC95: Franek | AD95: =(360000*(1/4))-1500 -> 88500
A96: 86 | B96: 2013-03-11 | C96: Frank | D96: =(280000*(1/4))-1500 -> 68500 | AA96: 86 | AB96: 2013-03-11 | AC96: Franek | AD96: =(280000*(1/4))-1500 -> 68500
A97: 87 | B97: 2013-04-15 | C97: Frank | D97: =(380000*(1/4))-1500 -> 93500 | AA97: 87 | AB97: 2013-04-15 | AC97: Franek | AD97: =(380000*(1/4))-1500 -> 93500
A98: 88 | B98: 2013-05-13 | C98: Frank | D98: =(340000*(1/4))-1500 -> 83500 | AA98: 88 | AB98: 2013-05-13 | AC98: Franek | AD98: =(340000*(1/4))-1500 -> 83500
A99: 89 | B99: 2013-06-10 | C99: Frank | D99: =(20000*(1/4))-1500 -> 3500 | AA99: 89 | AB99: 2013-06-10 | AC99: Franek | AD99: =(20000*(1/4))-1500 -> 3500
A100: 90 | B100: 2013-07-15 | C100: Frank | D100: =(280000*(1/4))-1500 -> 68500 | AA100: 90 | AB100: 2013-07-15 | AC100: Franek | AD100: =(280000*(1/4))-1500 -> 68500
A101: 91 | B101: 2013-08-12 | C101: Frank | D101: =(530000*(1/4))-1500 -> 131000 | AA101: 91 | AB101: 2013-08-12 | AC101: Franek | AD101: =(530000*(1/4))-1500 -> 131000
A102: 92 | B102: 2013-09-09 | C102: Frank | D102: =(170000*(1/4))-1500 -> 41000 | AA102: 92 | AB102: 2013-09-09 | AC102: Franek | AD102: =(170000*(1/4))-1500 -> 41000
A103: 93 | B103: 2013-10-14 | C103: Frank | D103: =(360000*(1/4))-1500 -> 88500 | AA103: 93 | AB103: 2013-10-14 | AC103: Franek | AD103: =(360000*(1/4))-1500 -> 88500
A104: 94 | B104: 2013-11-11 | C104: Frank | D104: =(340000*(1/4))-1500 -> 83500 | AA104: 94 | AB104: 2013-11-11 | AC104: Franek | AD104: =(340000*(1/4))-1500 -> 83500
A105: 95 | B105: 2013-12-09 | C105: Frank | D105: =(420000*(1/4))-1500 -> 103500 | AA105: 95 | AB105: 2013-12-09 | AC105: Franek | AD105: =(420000*(1/4))-1500 -> 103500
A106: 96 | B106: 2013-02-11 | C106: Jill | D106: =(260000*(1/4))-1500 -> 63500 | AA106: 96 | AB106: 2013-02-11 | AC106: Joanna | AD106: =(260000*(1/4))-1500 -> 63500
A107: 97 | B107: 2013-03-11 | C107: Jill | D107: =(340000*(1/4))-1500 -> 83500 | AA107: 97 | AB107: 2013-03-11 | AC107: Joanna | AD107: =(340000*(1/4))-1500 -> 83500
A108: 98 | B108: 2013-04-15 | C108: Jill | D108: =(230000*(1/4))-1500 -> 56000 | AA108: 98 | AB108: 2013-04-15 | AC108: Joanna | AD108: =(230000*(1/4))-1500 -> 56000
A109: 99 | B109: 2013-05-13 | C109: Jill | D109: =(510000*(1/4))-1500 -> 126000 | AA109: 99 | AB109: 2013-05-13 | AC109: Joanna | AD109: =(510000*(1/4))-1500 -> 126000
A110: 100 | B110: 2013-06-10 | C110: Jill | D110: =(290000*(1/4))-1500 -> 71000 | AA110: 100 | AB110: 2013-06-10 | AC110: Joanna | AD110: =(290000*(1/4))-1500 -> 71000
A111: 101 | B111: 2013-07-15 | C111: Jill | D111: =(240000*(1/4))-1500 -> 58500 | AA111: 101 | AB111: 2013-07-15 | AC111: Joanna | AD111: =(240000*(1/4))-1500 -> 58500
A112: 102 | B112: 2013-08-12 | C112: Jill | D112: =(430000*(1/4))-1500 -> 106000 | AA112: 102 | AB112: 2013-08-12 | AC112: Joanna | AD112: =(430000*(1/4))-1500 -> 106000
A113: 103 | B113: 2013-09-09 | C113: Jill | D113: =(300000*(1/4))-1500 -> 73500 | AA113: 103 | AB113: 2013-09-09 | AC113: Joanna | AD113: =(300000*(1/4))-1500 -> 73500
A114: 104 | B114: 2013-10-14 | C114: Jill | D114: =(180000*(1/4))-1500 -> 43500 | AA114: 104 | AB114: 2013-10-14 | AC114: Joanna | AD114: =(180000*(1/4))-1500 -> 43500
A115: 105 | B115: 2013-11-11 | C115: Jill | D115: =(280000*(1/4))-1500 -> 68500 | AA115: 105 | AB115: 2013-11-11 | AC115: Joanna | AD115: =(280000*(1/4))-1500 -> 68500
A116: 106 | B116: 2013-12-09 | C116: Jill | D116: =(190000*(1/4))-1500 -> 46000 | AA116: 106 | AB116: 2013-12-09 | AC116: Joanna | AD116: =(190000*(1/4))-1500 -> 46000
A117: 107 | B117: 2013-01-14 | C117: Mary | D117: =(310000*(1/4))-1500 -> 76000 | AA117: 107 | AB117: 2013-01-14 | AC117: Maria | AD117: =(310000*(1/4))-1500 -> 76000
A118: 108 | B118: 2013-02-11 | C118: Mary | D118: =(150000*(1/4))-1500 -> 36000 | AA118: 108 | AB118: 2013-02-11 | AC118: Maria | AD118: =(150000*(1/4))-1500 -> 36000
A119: 109 | B119: 2013-03-11 | C119: Mary | D119: =(250000*(1/4))-1500 -> 61000 | AA119: 109 | AB119: 2013-03-11 | AC119: Maria | AD119: =(250000*(1/4))-1500 -> 61000
A120: 110 | B120: 2013-04-15 | C120: Mary | D120: =(180000*(1/4))-1500 -> 43500 | AA120: 110 | AB120: 2013-04-15 | AC120: Maria | AD120: =(180000*(1/4))-1500 -> 43500
A121: 111 | B121: 2013-05-13 | C121: Mary | D121: =(280000*(1/4))-1500 -> 68500 | AA121: 111 | AB121: 2013-05-13 | AC121: Maria | AD121: =(280000*(1/4))-1500 -> 68500
A122: 112 | B122: 2013-06-10 | C122: Mary | D122: =(350000*(1/4))-1500 -> 86000 | AA122: 112 | AB122: 2013-06-10 | AC122: Maria | AD122: =(350000*(1/4))-1500 -> 86000
A123: 113 | B123: 2013-07-15 | C123: Mary | D123: =(400000*(1/4))-1500 -> 98500 | AA123: 113 | AB123: 2013-07-15 | AC123: Maria | AD123: =(400000*(1/4))-1500 -> 98500
A124: 114 | B124: 2013-08-12 | C124: Mary | D124: =(320000*(1/4))-1500 -> 78500 | AA124: 114 | AB124: 2013-08-12 | AC124: Maria | AD124: =(320000*(1/4))-1500 -> 78500
A125: 115 | B125: 2013-09-09 | C125: Mary | D125: =(330000*(1/4))-1500 -> 81000 | AA125: 115 | AB125: 2013-09-09 | AC125: Maria | AD125: =(330000*(1/4))-1500 -> 81000
A126: 116 | B126: 2013-10-14 | C126: Mary | D126: =(430000*(1/4))-1500 -> 106000 | AA126: 116 | AB126: 2013-10-14 | AC126: Maria | AD126: =(430000*(1/4))-1500 -> 106000
A127: 117 | B127: 2013-11-11 | C127: Mary | D127: =(250000*(1/4))-1500 -> 61000 | AA127: 117 | AB127: 2013-11-11 | AC127: Maria | AD127: =(250000*(1/4))-1500 -> 61000
A128: 118 | B128: 2013-12-09 | C128: Mary | D128: =(140000*(1/4))-1500 -> 33500 | AA128: 118 | AB128: 2013-12-09 | AC128: Maria | AD128: =(140000*(1/4))-1500 -> 33500
A129: 119 | B129: 2013-01-14 | C129: Paul | D129: =(430000*(1/4))-1500 -> 106000 | AA129: 119 | AB129: 2013-01-14 | AC129: Paweł | AD129: =(430000*(1/4))-1500 -> 106000
A130: 120 | B130: 2013-02-11 | C130: Paul | D130: =(300000*(1/4))-1500 -> 73500 | AA130: 120 | AB130: 2013-02-11 | AC130: Paweł | AD130: =(300000*(1/4))-1500 -> 73500
A131: 121 | B131: 2013-03-11 | C131: Paul | D131: =(470000*(1/4))-1500 -> 116000 | AA131: 121 | AB131: 2013-03-11 | AC131: Paweł | AD131: =(470000*(1/4))-1500 -> 116000
A132: 122 | B132: 2013-04-15 | C132: Paul | D132: =(300000*(1/4))-1500 -> 73500 | AA132: 122 | AB132: 2013-04-15 | AC132: Paweł | AD132: =(300000*(1/4))-1500 -> 73500
A133: 123 | B133: 2013-05-13 | C133: Paul | D133: =(370000*(1/4))-1500 -> 91000 | AA133: 123 | AB133: 2013-05-13 | AC133: Paweł | AD133: =(370000*(1/4))-1500 -> 91000
A134: 124 | B134: 2013-06-10 | C134: Paul | D134: =(360000*(1/4))-1500 -> 88500 | AA134: 124 | AB134: 2013-06-10 | AC134: Paweł | AD134: =(360000*(1/4))-1500 -> 88500
A135: 125 | B135: 2013-07-15 | C135: Paul | D135: =(300000*(1/4))-1500 -> 73500 | AA135: 125 | AB135: 2013-07-15 | AC135: Paweł | AD135: =(300000*(1/4))-1500 -> 73500
A136: 126 | B136: 2013-08-12 | C136: Paul | D136: =(260000*(1/4))-1500 -> 63500 | AA136: 126 | AB136: 2013-08-12 | AC136: Paweł | AD136: =(260000*(1/4))-1500 -> 63500
A137: 127 | B137: 2013-09-09 | C137: Paul | D137: =(320000*(1/4))-1500 -> 78500 | AA137: 127 | AB137: 2013-09-09 | AC137: Paweł | AD137: =(320000*(1/4))-1500 -> 78500
A138: 128 | B138: 2013-10-14 | C138: Paul | D138: =(330000*(1/4))-1500 -> 81000 | AA138: 128 | AB138: 2013-10-14 | AC138: Paweł | AD138: =(330000*(1/4))-1500 -> 81000
A139: 129 | B139: 2013-11-11 | C139: Paul | D139: =(160000*(1/4))-1500 -> 38500 | AA139: 129 | AB139: 2013-11-11 | AC139: Paweł | AD139: =(160000*(1/4))-1500 -> 38500
A140: 130 | B140: 2013-12-09 | C140: Paul | D140: =(220000*(1/4))-1500 -> 53500 | AA140: 130 | AB140: 2013-12-09 | AC140: Paweł | AD140: =(220000*(1/4))-1500 -> 53500
A141: 131 | B141: 2013-01-14 | C141: Randy | D141: =(350000*(1/4))-1500 -> 86000 | AA141: 131 | AB141: 2013-01-14 | AC141: Rafał | AD141: =(350000*(1/4))-1500 -> 86000
A142: 132 | B142: 2013-02-11 | C142: Randy | D142: =(380000*(1/4))-1500 -> 93500 | AA142: 132 | AB142: 2013-02-11 | AC142: Rafał | AD142: =(380000*(1/4))-1500 -> 93500
A143: 133 | B143: 2013-03-11 | C143: Randy | D143: =(330000*(1/4))-1500 -> 81000 | AA143: 133 | AB143: 2013-03-11 | AC143: Rafał | AD143: =(330000*(1/4))-1500 -> 81000
A144: 134 | B144: 2013-04-15 | C144: Randy | D144: =(320000*(1/4))-1500 -> 78500 | AA144: 134 | AB144: 2013-04-15 | AC144: Rafał | AD144: =(320000*(1/4))-1500 -> 78500
A145: 135 | B145: 2013-05-13 | C145: Randy | D145: =(250000*(1/4))-1500 -> 61000 | AA145: 135 | AB145: 2013-05-13 | AC145: Rafał | AD145: =(250000*(1/4))-1500 -> 61000
A146: 136 | B146: 2013-06-10 | C146: Randy | D146: =(170000*(1/4))-1500 -> 41000 | AA146: 136 | AB146: 2013-06-10 | AC146: Rafał | AD146: =(170000*(1/4))-1500 -> 41000
A147: 137 | B147: 2013-07-15 | C147: Randy | D147: =(240000*(1/4))-1500 -> 58500 | AA147: 137 | AB147: 2013-07-15 | AC147: Rafał | AD147: =(240000*(1/4))-1500 -> 58500
A148: 138 | B148: 2013-08-12 | C148: Randy | D148: =(250000*(1/4))-1500 -> 61000 | AA148: 138 | AB148: 2013-08-12 | AC148: Rafał | AD148: =(250000*(1/4))-1500 -> 61000
A149: 139 | B149: 2013-09-09 | C149: Randy | D149: =(330000*(1/4))-1500 -> 81000 | AA149: 139 | AB149: 2013-09-09 | AC149: Rafał | AD149: =(330000*(1/4))-1500 -> 81000
A150: 140 | B150: 2013-10-14 | C150: Randy | D150: =(240000*(1/4))-1500 -> 58500 | AA150: 140 | AB150: 2013-10-14 | AC150: Rafał | AD150: =(240000*(1/4))-1500 -> 58500
A151: 141 | B151: 2013-11-11 | C151: Randy | D151: =(270000*(1/4))-1500 -> 66000 | AA151: 141 | AB151: 2013-11-11 | AC151: Rafał | AD151: =(270000*(1/4))-1500 -> 66000
A152: 142 | B152: 2013-12-09 | C152: Randy | D152: =(290000*(1/4))-1500 -> 71000 | AA152: 142 | AB152: 2013-12-09 | AC152: Rafał | AD152: =(290000*(1/4))-1500 -> 71000
A153: 143 | B153: 2013-01-21 | C153: Bob | D153: =(300000*(1/4))+1500 -> 76500 | AA153: 143 | AB153: 2013-01-21 | AC153: Robert | AD153: =(300000*(1/4))+1500 -> 76500
A154: 144 | B154: 2013-02-18 | C154: Bob | D154: =(230000*(1/4))+1500 -> 59000 | AA154: 144 | AB154: 2013-02-18 | AC154: Robert | AD154: =(230000*(1/4))+1500 -> 59000
A155: 145 | B155: 2013-03-18 | C155: Bob | D155: =(390000*(1/4))+1500 -> 99000 | AA155: 145 | AB155: 2013-03-18 | AC155: Robert | AD155: =(390000*(1/4))+1500 -> 99000
A156: 146 | B156: 2013-04-22 | C156: Bob | D156: =(450000*(1/4))+1500 -> 114000 | AA156: 146 | AB156: 2013-04-22 | AC156: Robert | AD156: =(450000*(1/4))+1500 -> 114000
A157: 147 | B157: 2013-05-20 | C157: Bob | D157: =(300000*(1/4))+1500 -> 76500 | AA157: 147 | AB157: 2013-05-20 | AC157: Robert | AD157: =(300000*(1/4))+1500 -> 76500
A158: 148 | B158: 2013-06-17 | C158: Bob | D158: =(340000*(1/4))+1500 -> 86500 | AA158: 148 | AB158: 2013-06-17 | AC158: Robert | AD158: =(340000*(1/4))+1500 -> 86500
A159: 149 | B159: 2013-07-22 | C159: Bob | D159: =(240000*(1/4))+1500 -> 61500 | AA159: 149 | AB159: 2013-07-22 | AC159: Robert | AD159: =(240000*(1/4))+1500 -> 61500
A160: 150 | B160: 2013-08-19 | C160: Bob | D160: =(270000*(1/4))+1500 -> 69000 | AA160: 150 | AB160: 2013-08-19 | AC160: Robert | AD160: =(270000*(1/4))+1500 -> 69000
A161: 151 | B161: 2013-09-16 | C161: Bob | D161: =(340000*(1/4))+1500 -> 86500 | AA161: 151 | AB161: 2013-09-16 | AC161: Robert | AD161: =(340000*(1/4))+1500 -> 86500
A162: 152 | B162: 2013-10-21 | C162: Bob | D162: =(300000*(1/4))+1500 -> 76500 | AA162: 152 | AB162: 2013-10-21 | AC162: Robert | AD162: =(300000*(1/4))+1500 -> 76500
A163: 153 | B163: 2013-11-18 | C163: Bob | D163: =(310000*(1/4))+1500 -> 79000 | AA163: 153 | AB163: 2013-11-18 | AC163: Robert | AD163: =(310000*(1/4))+1500 -> 79000
A164: 154 | B164: 2013-12-16 | C164: Bob | D164: =(260000*(1/4))+1500 -> 66500 | AA164: 154 | AB164: 2013-12-16 | AC164: Robert | AD164: =(260000*(1/4))+1500 -> 66500
A165: 155 | B165: 2013-01-21 | C165: Frank | D165: =(270000*(1/4))+1500 -> 69000 | AA165: 155 | AB165: 2013-01-21 | AC165: Franek | AD165: =(270000*(1/4))+1500 -> 69000
A166: 156 | B166: 2013-02-18 | C166: Frank | D166: =(360000*(1/4))+1500 -> 91500 | AA166: 156 | AB166: 2013-02-18 | AC166: Franek | AD166: =(360000*(1/4))+1500 -> 91500
A167: 157 | B167: 2013-03-18 | C167: Frank | D167: =(280000*(1/4))+1500 -> 71500 | AA167: 157 | AB167: 2013-03-18 | AC167: Franek | AD167: =(280000*(1/4))+1500 -> 71500
A168: 158 | B168: 2013-04-22 | C168: Frank | D168: =(380000*(1/4))+1500 -> 96500 | AA168: 158 | AB168: 2013-04-22 | AC168: Franek | AD168: =(380000*(1/4))+1500 -> 96500
A169: 159 | B169: 2013-05-20 | C169: Frank | D169: =(340000*(1/4))+1500 -> 86500 | AA169: 159 | AB169: 2013-05-20 | AC169: Franek | AD169: =(340000*(1/4))+1500 -> 86500
A170: 160 | B170: 2013-06-17 | C170: Frank | D170: =(20000*(1/4))+1500 -> 6500 | AA170: 160 | AB170: 2013-06-17 | AC170: Franek | AD170: =(20000*(1/4))+1500 -> 6500
A171: 161 | B171: 2013-07-22 | C171: Frank | D171: =(280000*(1/4))+1500 -> 71500 | AA171: 161 | AB171: 2013-07-22 | AC171: Franek | AD171: =(280000*(1/4))+1500 -> 71500
A172: 162 | B172: 2013-08-19 | C172: Frank | D172: =(530000*(1/4))+1500 -> 134000 | AA172: 162 | AB172: 2013-08-19 | AC172: Franek | AD172: =(530000*(1/4))+1500 -> 134000
A173: 163 | B173: 2013-09-16 | C173: Frank | D173: =(170000*(1/4))+1500 -> 44000 | AA173: 163 | AB173: 2013-09-16 | AC173: Franek | AD173: =(170000*(1/4))+1500 -> 44000
A174: 164 | B174: 2013-10-21 | C174: Frank | D174: =(360000*(1/4))+1500 -> 91500 | AA174: 164 | AB174: 2013-10-21 | AC174: Franek | AD174: =(360000*(1/4))+1500 -> 91500
A175: 165 | B175: 2013-11-18 | C175: Frank | D175: =(340000*(1/4))+1500 -> 86500 | AA175: 165 | AB175: 2013-11-18 | AC175: Franek | AD175: =(340000*(1/4))+1500 -> 86500
A176: 166 | B176: 2013-12-16 | C176: Frank | D176: =(420000*(1/4))+1500 -> 106500 | AA176: 166 | AB176: 2013-12-16 | AC176: Franek | AD176: =(420000*(1/4))+1500 -> 106500
A177: 167 | B177: 2013-02-18 | C177: Jill | D177: =(260000*(1/4))+1500 -> 66500 | AA177: 167 | AB177: 2013-02-18 | AC177: Joanna | AD177: =(260000*(1/4))+1500 -> 66500
A178: 168 | B178: 2013-03-18 | C178: Jill | D178: =(340000*(1/4))+1500 -> 86500 | AA178: 168 | AB178: 2013-03-18 | AC178: Joanna | AD178: =(340000*(1/4))+1500 -> 86500
A179: 169 | B179: 2013-04-22 | C179: Jill | D179: =(230000*(1/4))+1500 -> 59000 | AA179: 169 | AB179: 2013-04-22 | AC179: Joanna | AD179: =(230000*(1/4))+1500 -> 59000
A180: 170 | B180: 2013-05-20 | C180: Jill | D180: =(510000*(1/4))+1500 -> 129000 | AA180: 170 | AB180: 2013-05-20 | AC180: Joanna | AD180: =(510000*(1/4))+1500 -> 129000
A181: 171 | B181: 2013-06-17 | C181: Jill | D181: =(290000*(1/4))+1500 -> 74000 | AA181: 171 | AB181: 2013-06-17 | AC181: Joanna | AD181: =(290000*(1/4))+1500 -> 74000
A182: 172 | B182: 2013-07-22 | C182: Jill | D182: =(240000*(1/4))+1500 -> 61500 | AA182: 172 | AB182: 2013-07-22 | AC182: Joanna | AD182: =(240000*(1/4))+1500 -> 61500
A183: 173 | B183: 2013-08-19 | C183: Jill | D183: =(430000*(1/4))+1500 -> 109000 | AA183: 173 | AB183: 2013-08-19 | AC183: Joanna | AD183: =(430000*(1/4))+1500 -> 109000
A184: 174 | B184: 2013-09-16 | C184: Jill | D184: =(300000*(1/4))+1500 -> 76500 | AA184: 174 | AB184: 2013-09-16 | AC184: Joanna | AD184: =(300000*(1/4))+1500 -> 76500
A185: 175 | B185: 2013-10-21 | C185: Jill | D185: =(180000*(1/4))+1500 -> 46500 | AA185: 175 | AB185: 2013-10-21 | AC185: Joanna | AD185: =(180000*(1/4))+1500 -> 46500
A186: 176 | B186: 2013-11-18 | C186: Jill | D186: =(280000*(1/4))+1500 -> 71500 | AA186: 176 | AB186: 2013-11-18 | AC186: Joanna | AD186: =(280000*(1/4))+1500 -> 71500
A187: 177 | B187: 2013-12-16 | C187: Jill | D187: =(190000*(1/4))+1500 -> 49000 | AA187: 177 | AB187: 2013-12-16 | AC187: Joanna | AD187: =(190000*(1/4))+1500 -> 49000
A188: 178 | B188: 2013-01-21 | C188: Mary | D188: =(310000*(1/4))+1500 -> 79000 | AA188: 178 | AB188: 2013-01-21 | AC188: Maria | AD188: =(310000*(1/4))+1500 -> 79000
A189: 179 | B189: 2013-02-18 | C189: Mary | D189: =(150000*(1/4))+1500 -> 39000 | AA189: 179 | AB189: 2013-02-18 | AC189: Maria | AD189: =(150000*(1/4))+1500 -> 39000
A190: 180 | B190: 2013-03-18 | C190: Mary | D190: =(250000*(1/4))+1500 -> 64000 | AA190: 180 | AB190: 2013-03-18 | AC190: Maria | AD190: =(250000*(1/4))+1500 -> 64000
A191: 181 | B191: 2013-04-22 | C191: Mary | D191: =(180000*(1/4))+1500 -> 46500 | AA191: 181 | AB191: 2013-04-22 | AC191: Maria | AD191: =(180000*(1/4))+1500 -> 46500
A192: 182 | B192: 2013-05-20 | C192: Mary | D192: =(280000*(1/4))+1500 -> 71500 | AA192: 182 | AB192: 2013-05-20 | AC192: Maria | AD192: =(280000*(1/4))+1500 -> 71500
A193: 183 | B193: 2013-06-17 | C193: Mary | D193: =(350000*(1/4))+1500 -> 89000 | AA193: 183 | AB193: 2013-06-17 | AC193: Maria | AD193: =(350000*(1/4))+1500 -> 89000
A194: 184 | B194: 2013-07-22 | C194: Mary | D194: =(400000*(1/4))+1500 -> 101500 | AA194: 184 | AB194: 2013-07-22 | AC194: Maria | AD194: =(400000*(1/4))+1500 -> 101500
A195: 185 | B195: 2013-08-19 | C195: Mary | D195: =(320000*(1/4))+1500 -> 81500 | AA195: 185 | AB195: 2013-08-19 | AC195: Maria | AD195: =(320000*(1/4))+1500 -> 81500
A196: 186 | B196: 2013-09-16 | C196: Mary | D196: =(330000*(1/4))+1500 -> 84000 | AA196: 186 | AB196: 2013-09-16 | AC196: Maria | AD196: =(330000*(1/4))+1500 -> 84000
A197: 187 | B197: 2013-10-21 | C197: Mary | D197: =(430000*(1/4))+1500 -> 109000 | AA197: 187 | AB197: 2013-10-21 | AC197: Maria | AD197: =(430000*(1/4))+1500 -> 109000
A198: 188 | B198: 2013-11-18 | C198: Mary | D198: =(250000*(1/4))+1500 -> 64000 | AA198: 188 | AB198: 2013-11-18 | AC198: Maria | AD198: =(250000*(1/4))+1500 -> 64000
A199: 189 | B199: 2013-12-16 | C199: Mary | D199: =(140000*(1/4))+1500 -> 36500 | AA199: 189 | AB199: 2013-12-16 | AC199: Maria | AD199: =(140000*(1/4))+1500 -> 36500
A200: 190 | B200: 2013-01-21 | C200: Paul | D200: =(430000*(1/4))+1500 -> 109000 | AA200: 190 | AB200: 2013-01-21 | AC200: Paweł | AD200: =(430000*(1/4))+1500 -> 109000
A201: 191 | B201: 2013-02-18 | C201: Paul | D201: =(300000*(1/4))+1500 -> 76500 | AA201: 191 | AB201: 2013-02-18 | AC201: Paweł | AD201: =(300000*(1/4))+1500 -> 76500
A202: 192 | B202: 2013-03-18 | C202: Paul | D202: =(470000*(1/4))+1500 -> 119000 | AA202: 192 | AB202: 2013-03-18 | AC202: Paweł | AD202: =(470000*(1/4))+1500 -> 119000
... 92 more rows

Sheet intro3
B5: In the table below: | AB5: W tabeli poniżej:
B6: how many dimensions do you see? | AB6: ile widzisz wymiarów
B8: how many metrics do you see? | AB8: ile widzisz miar
B10: how many the less important fields for pivot tables do you see? | AB10: ile widzisz mniej istotnych pól dla tabel przestawnych
A12: ID | B12: chamber | C12: kind of case | D12: effectiveness | E12: fare for service | F12: days spent | AA12: ID | AB12: zaspół adwokacki | AC12: rodzaj | AD12: wynik | AE12: opłata | AF12: liczba dni
A13: 1 | B13: Lukas Company | C13: merchant | D13: won | E13: 42000 | F13: 21 | AA13: 1 | AB13: M&R Company | AC13: nieruchomości | AD13: przegrana | AE13: 7500 | AF13: 5
A14: 2 | B14: M&R Company | C14: merchant | D14: lost | E14: 13000 | F14: 7 | AA14: 2 | AB14: Lukas Company | AC14: nieruchomości | AD14: przegrana | AE14: 5000 | AF14: 3
A15: 3 | B15: Lukas Company | C15: families | D15: lost | E15: 1800 | F15: 1 | AA15: 3 | AB15: Lukas Company | AC15: nieruchomości | AD15: przegrana | AE15: 4300 | AF15: 3
A16: 4 | B16: M&R Company | C16: families | D16: won | E16: 1800 | F16: 1 | AA16: 4 | AB16: Lukas Company | AC16: rodzinna | AD16: przegrana | AE16: 1800 | AF16: 1
A17: 5 | B17: M&R Company | C17: merchant | D17: won | E17: 25000 | F17: 14 | AA17: 5 | AB17: Lukas Company | AC17: rodzinna | AD17: przegrana | AE17: 1500 | AF17: 1
A18: 6 | B18: Lukas Company | C18: estate | D18: won | E18: 3500 | F18: 2 | AA18: 6 | AB18: Lukas Company | AC18: rodzinna | AD18: przegrana | AE18: 2700 | AF18: 2
A19: 7 | B19: Lukas Company | C19: merchant | D19: won | E19: 36000 | F19: 21 | AA19: 7 | AB19: M&R Company | AC19: gospodarcza | AD19: przegrana | AE19: 13000 | AF19: 7
A20: 8 | B20: Lukas Company | C20: estate | D20: lost | E20: 5000 | F20: 3 | AA20: 8 | AB20: M&R Company | AC20: gospodarcza | AD20: przegrana | AE20: 22000 | AF20: 14
A21: 9 | B21: M&R Company | C21: estate | D21: won | E21: 5000 | F21: 3 | AA21: 9 | AB21: M&R Company | AC21: gospodarcza | AD21: przegrana | AE21: 15000 | AF21: 10
A22: 10 | B22: Lukas Company | C22: estate | D22: won | E22: 4800 | F22: 3 | AA22: 10 | AB22: M&R Company | AC22: nieruchomości | AD22: wygrana | AE22: 5000 | AF22: 3
A23: 11 | B23: M&R Company | C23: merchant | D23: lost | E23: 22000 | F23: 14 | AA23: 11 | AB23: M&R Company | AC23: nieruchomości | AD23: wygrana | AE23: 3000 | AF23: 2
A24: 12 | B24: Lukas Company | C24: families | D24: lost | E24: 1500 | F24: 1 | AA24: 12 | AB24: M&R Company | AC24: nieruchomości | AD24: wygrana | AE24: 6000 | AF24: 5
A25: 13 | B25: Lukas Company | C25: merchant | D25: won | E25: 21000 | F25: 14 | AA25: 13 | AB25: Lukas Company | AC25: nieruchomości | AD25: wygrana | AE25: 3500 | AF25: 2
A26: 14 | B26: M&R Company | C26: estate | D26: lost | E26: 7500 | F26: 5 | AA26: 14 | AB26: Lukas Company | AC26: nieruchomości | AD26: wygrana | AE26: 4800 | AF26: 3
A27: 15 | B27: M&R Company | C27: estate | D27: won | E27: 3000 | F27: 2 | AA27: 15 | AB27: M&R Company | AC27: rodzinna | AD27: wygrana | AE27: 1800 | AF27: 1
A28: 16 | B28: M&R Company | C28: families | D28: won | E28: 1500 | F28: 1 | AA28: 16 | AB28: M&R Company | AC28: rodzinna | AD28: wygrana | AE28: 1500 | AF28: 1
A29: 17 | B29: M&R Company | C29: families | D29: won | E29: 1500 | F29: 1 | AA29: 17 | AB29: M&R Company | AC29: rodzinna | AD29: wygrana | AE29: 1500 | AF29: 1
A30: 18 | B30: M&R Company | C30: merchant | D30: lost | E30: 15000 | F30: 10 | AA30: 18 | AB30: M&R Company | AC30: rodzinna | AD30: wygrana | AE30: 2500 | AF30: 2
A31: 19 | B31: Lukas Company | C31: estate | D31: lost | E31: 4300 | F31: 3 | AA31: 19 | AB31: M&R Company | AC31: rodzinna | AD31: wygrana | AE31: 2000 | AF31: 2
A32: 20 | B32: Lukas Company | C32: families | D32: lost | E32: 2700 | F32: 2 | AA32: 20 | AB32: Lukas Company | AC32: rodzinna | AD32: wygrana | AE32: 2500 | AF32: 2
A33: 21 | B33: Lukas Company | C33: families | D33: won | E33: 2500 | F33: 2 | AA33: 21 | AB33: Lukas Company | AC33: rodzinna | AD33: wygrana | AE33: 1200 | AF33: 1
A34: 22 | B34: M&R Company | C34: families | D34: won | E34: 2500 | F34: 2 | AA34: 22 | AB34: M&R Company | AC34: gospodarcza | AD34: wygrana | AE34: 25000 | AF34: 14
A35: 23 | B35: Lukas Company | C35: families | D35: won | E35: 1200 | F35: 1 | AA35: 23 | AB35: Lukas Company | AC35: gospodarcza | AD35: wygrana | AE35: 42000 | AF35: 21
A36: 24 | B36: M&R Company | C36: estate | D36: won | E36: 6000 | F36: 5 | AA36: 24 | AB36: Lukas Company | AC36: gospodarcza | AD36: wygrana | AE36: 36000 | AF36: 21
A37: 25 | B37: Lukas Company | C37: merchant | D37: won | E37: 15000 | F37: 14 | AA37: 25 | AB37: Lukas Company | AC37: gospodarcza | AD37: wygrana | AE37: 21000 | AF37: 14
A38: 26 | B38: M&R Company | C38: families | D38: won | E38: 2000 | F38: 2 | AA38: 26 | AB38: Lukas Company | AC38: gospodarcza | AD38: wygrana | AE38: 15000 | AF38: 14

Sheet source
IV1: aaa 2011-01-23 14:06:58
C4: In the table below: | AB4: W tabeli poniżej:
C5: how many dimensions do you see? | AB5: ile widzisz wymiarów
C7: how many metrics do you see? | AB7: ile widzisz miar
C9: how many the less important fields for pivot tables do you see? | AB9: ile widzisz mniej istotnych pól dla tabel przestawnych
A12: ID | B12: Name | C12: Annual_Salary | D12: Monthly_Salary | E12: Location | F12: Date Hired | G12: Pension fund | AA12: ID | AB12: Osoba | AC12: Roczne zarobki | AD12: Miesięczne zarobki | AE12: Miejscowość | AF12: Data zatrudnienia | AG12: PPE | AH12: Płeć
A13: 1 | B13: James Millen | C13: 27690 | D13: =C13/12 -> 2307.5 | E13: Los Angeles | F13: 1994-12-26 | G13: FALSE | AA13: 1 | AB13: Adam Jantar | AC13: =AD13*12 -> 58272 | AD13: 4856 | AE13: Poznań | AF13: 2013-02-01 | AG13: FALSE | AH13: M
A14: 2 | B14: Thomas E. Abbott | C14: 60000 | D14: 5000 | E14: Los Angeles | F14: 1995-01-22 | G14: FALSE | AA14: 2 | AB14: Alina Kuna | AC14: 73800 | AD14: 6150 | AE14: Kraków | AF14: 2006-09-13 | AG14: FALSE | AH14: K
A15: 3 | B15: Chris Poundsworth | C15: 29850 | D15: 2487.5 | E15: Seattle | F15: 1999-03-24 | G15: FALSE | AA15: 3 | AB15: Cezary Piórkowski | AC15: 69864 | AD15: 5822 | AE15: Wrocław | AF15: 1998-07-19 | AG15: TRUE | AH15: M
A16: 4 | B16: Richard E. Card | C16: 43000 | D16: 3583.333333 | E16: Seattle | F16: 1999-04-13 | G16: FALSE | AA16: 4 | AB16: Ewa Nowek | AC16: 47304 | AD16: 3942 | AE16: Poznań | AF16: 2003-02-06 | AG16: FALSE | AH16: K
A17: 5 | B17: Douglas Williams | C17: 89687 | D17: 7473.916667 | E17: Portland | F17: 1999-10-15 | G17: TRUE | AA17: 5 | AB17: Iwona Laskowska | AC17: 85680 | AD17: 7140 | AE17: Wrocław | AF17: 2006-05-12 | AG17: TRUE | AH17: K
A18: 6 | B18: Phillip A. Todd | C18: 29500 | D18: 2458.333333 | E18: Portland | F18: 1999-10-15 | G18: FALSE | AA18: 6 | AB18: Jan Brzytwa | AC18: 67284 | AD18: 5607 | AE18: Poznań | AF18: 2011-08-16 | AG18: TRUE | AH18: M
A19: 7 | B19: Anthony Taylor | C19: 55500 | D19: 4625 | E19: Los Angeles | F19: 2000-02-11 | G19: FALSE | AA19: 7 | AB19: Jan Nowicki | AC19: 82176 | AD19: 6848 | AE19: Wrocław | AF19: 2009-09-11 | AG19: TRUE | AH19: M
A20: 8 | B20: Rick Fogerty | C20: 89873 | D20: 7489.416667 | E20: Portland | F20: 2000-04-08 | G20: TRUE | AA20: 8 | AB20: Janina Belkowa | AC20: 27600 | AD20: 2300 | AE20: Wrocław | AF20: 2006-03-06 | AG20: FALSE | AH20: K
A21: 9 | B21: Stephen C. Carter | C21: 44123 | D21: 3676.916667 | E21: Los Angeles | F21: 2000-07-10 | G21: FALSE | AA21: 9 | AB21: Joanna Wysocka | AC21: 57768 | AD21: 4814 | AE21: Poznań | AF21: 2005-12-25 | AG21: TRUE | AH21: K
A22: 10 | B22: Ivan Silberstein | C22: 95000 | D22: 7916.666667 | E22: Los Angeles | F22: 2000-09-11 | G22: TRUE | AA22: 10 | AB22: Joanna Zimowa | AC22: 61296 | AD22: 5108 | AE22: Wrocław | AF22: 1996-08-14 | AG22: FALSE | AH22: K
A23: 11 | B23: Joe Morrison | C23: 24000 | D23: 2000 | E23: Seattle | F23: 2000-12-22 | G23: FALSE | AA23: 11 | AB23: Marta Domerecka | AC23: 68616 | AD23: 5718 | AE23: Poznań | AF23: 2005-05-28 | AG23: TRUE | AH23: K
A24: 12 | B24: Robert H. Miller | C24: 149000 | D24: 12416.66667 | E24: Portland | F24: 2001-02-09 | G24: TRUE | AA24: 12 | AB24: Paweł Gaweł | AC24: 75600 | AD24: 6300 | AE24: Poznań | AF24: 2010-09-13 | AG24: FALSE | AH24: M
A25: 13 | B25: Michael Hayden | C25: 78230 | D25: 6519.166667 | E25: Seattle | F25: 2001-03-12 | G25: TRUE | AA25: 13 | AB25: Paweł Kitera | AC25: 27816 | AD25: 2318 | AE25: Kraków | AF25: 2005-05-16 | AG25: TRUE | AH25: M
A26: 14 | B26: John T. Foster | C26: 39500 | D26: 3291.666667 | E26: Seattle | F26: 2001-07-21 | G26: FALSE | AA26: 14 | AB26: Paweł Pawlak | AC26: 69600 | AD26: 5800 | AE26: Wrocław | AF26: 2003-09-22 | AG26: FALSE | AH26: M
A27: 15 | B27: Steven H. Katz | C27: 32900 | D27: 2741.666667 | E27: Los Angeles | F27: 2001-12-26 | G27: FALSE | AA27: 15 | AB27: Piotr Konopnicki | AC27: 53640 | AD27: 4470 | AE27: Kraków | AF27: 2009-04-18 | AG27: FALSE | AH27: M
A28: 16 | B28: Jeffrey P. Jones | C28: 42000 | D28: 3500 | E28: Seattle | F28: 2002-01-19 | G28: FALSE | AA28: 16 | AB28: Radosław Czerkawski | AC28: 54552 | AD28: 4546 | AE28: Wrocław | AF28: 2008-02-24 | AG28: FALSE | AH28: M
A29: 17 | B29: Clark Bickerson | C29: 120000 | D29: 10000 | E29: Los Angeles | F29: 2002-01-29 | G29: TRUE | AA29: 17 | AB29: Rafał Janowski | AC29: 68232 | AD29: 5686 | AE29: Wrocław | AF29: 2004-08-16 | AG29: TRUE | AH29: M
A30: 18 | B30: Charles S. Billings | C30: 39000 | D30: 3250 | E30: Los Angeles | F30: 2002-08-13 | G30: FALSE | AA30: 18 | AB30: Stefan Burczymucha | AC30: 112296 | AD30: 9358 | AE30: Poznań | AF30: 2003-06-09 | AG30: FALSE | AH30: M
A31: 19 | B31: Kurt Kamichoff | C31: 48000 | D31: 4000 | E31: Los Angeles | F31: 2002-08-17 | G31: FALSE | AA31: 19 | AB31: Wojciech Szczerba | AC31: 34860 | AD31: 2905 | AE31: Poznań | AF31: 2005-10-01 | AG31: FALSE | AH31: M
A32: 20 | B32: Tom Brown | C32: 65000 | D32: 5416.666667 | E32: Seattle | F32: 2003-03-08 | G32: TRUE | AA32: 20 | AB32: Zenon Kowalski | AC32: 63744 | AD32: 5312 | AE32: Kraków | AF32: 2006-12-14 | AG32: TRUE | AH32: M

Sheet tasks_basic
IU1: aaa 2011-01-23 14:06:58
B4: PIVOT TABLES | AA4: Raporty przestawnej | AB4: Screen cast
B6: 1. For each location count employees | AA6: 1. Dla każdego miasta policz pracowników. (wiersze: miejscowość wartość: policz osoba)
B7: 2. For each location sum anual budget | AA7: 2. Dla każdego miasta zsumuj roczne zarobki. Posortuj malejąco według zarobków.
B8: 3. For each location calculate average monthly salary | AA8: 3. Dla każdego miasta policz średnie miesięczne zarobki posortuj malejąco według średniej
AA9: 4. dla wszystkich wpisów za pomocą jednej tabeli przestawnej policz (sumę rocznych zarobków, średnią rocznych zarobków, minimum rocznych zarobków, maksimum rocznych zarobków)
AA10: 5. dla "Krakowa" za pomocą jednej tabeli przestawnej policz (sumę rocznych zarobków, średnią rocznych zarobków, minimum rocznych zarobków, maksimum rocznych zarobków) ustaw "Kraków" na w filtrze
B11: 4. for each earning bucket (annual salary) 0-10k, 10k-20k, 20k-30k count employees | AA11: 6. Dla każdego przedziału zarobków policz pracowników. Przedziały to do do 10 tys rocznie, do 20 tys rocznie …
B12: 5. for each earning bucket, for each city, count employees | AA12: 7. Dla każdego przedziału zarobków policz pracowników w rozbiciu na miasta.
B13: 6. For each year - count hired employees | AA13: 8. Dla każdego roku wziętego z daty zatrudnienia policz nowo zatrudnionych pracowników.
B14: improve (show years with count 0) | AA14: Ulepsz - pokaż lata z liczbą zatrudnionych zero, zrób wykres
B15: 7. For each location show percentage of anual budget | AA15: 9. pokaż udział procentowy każdego miasta w rocznym budżecie na pensje
B16: 8*. For junior/senior employee show average annual salary | AA16: 10*. dla grup junior i senior policz średnie roczne zarobki (junior jest liczony od 2008-1-1 patrz data zatrudnienia). W Excel2007 uruchom kreatora przestawnych z 2003 (klawisze Alt+D, K) chodzi o osobne cache. Jak tego nie zrobisz zadanie 7 zakłóci zadanie 5-6
AA19: screencast do zadania 1. metoda 1 | AB19: http://www.screencast.com/users/jan.krolikowski/folders/Jing/media/8f79a4df-068a-4c5d-80b7-b1b5a04c4f62
AA20: screencast do zadania 2. metoda 1 | AB20: http://www.screencast.com/users/jan.krolikowski/folders/Jing/media/6859f744-7785-4bc5-90cb-aa48e3f3c88e
AA21: screencast do zadania 1 metoda raportu tabeli przestawnej | AB21: http://www.screencast.com/users/jan.krolikowski/folders/Jing/media/daf7a3ba-f29f-4760-8550-8ca57ffc29eb
AA22: screencast do zadania 2. metoda raportu przestawnej | AB22: http://www.screencast.com/users/jan.krolikowski/folders/Jing/media/71ec1ca1-34b1-428b-8b21-a222769be0a1
AB23: http://www.screencast.com/users/jan.krolikowski/folders/Jing/media/76972756-6a06-4d99-b559-f08f3277c44d
AA24: screencast do zad 6 | AB24: http://www.screencast.com/users/jan.krolikowski/folders/Jing/media/c928e9dc-8dae-41e2-8f5b-3252bac1af82
AA25: screencast do zadania 8 | AB25: http://www.screencast.com/users/jan.krolikowski/folders/Jing/media/e10a8a49-79f0-4af8-b228-0609cd3aefcf
AA26: screencast do zadania 9 | AB26: http://www.screencast.com/users/jan.krolikowski/folders/Jing/media/b01d7586-0987-441c-b5ad-7da8fd7d4b9e
IU83: aaa 2011-01-23 14:06:58

Sheet Task01
D3: In the table below: | AB3: W tabeli poniżej:
D4: how many dimensions do you see? | I4: try table | AB4: ile widzisz wymiarów | AF4: For each Month show total value of Sales
I5: For each Month show total value of Sales | AF5: For each Region show total value of Sales
D6: how many metrics do you see? | I6: For each Region show total value of Sales | AB6: ile widzisz miar | AF6: For each Person show total value of Sales
A7: Build a Pivot table here: | I7: For each Person show total value of Sales | AF7: For each Person show total number of Contacts
D8: how many the less important fields for pivot tables do you see? | I8: For each Person show total number of Contacts | AB8: ile widzisz mniej istotnych pól dla tabel przestawnych | AF8: For each Month and each Region show total value of Sales
I9: For each Month and each Region show total value of Sales
A10: ID | B10: Month | C10: Sales Rep | D10: Region | E10: Contacts | F10: Sales | AB10: ID | AC10: Miesiąc | AD10: Przedstawiciel handlowy | AE10: Region | AF10: Kontakty | AG10: Sprzedaż
A11: 1 | B11: Jan | C11: Bob | D11: North | E11: 58 | F11: 283800 | AB11: 1 | AC11: Sty | AD11: Jan | AE11: Zachodni | AF11: 25 | AG11: 107500
A12: 2 | B12: Feb | C12: Bob | D12: North | E12: 44 | F12: 558400 | AB12: 2 | AC12: Sty | AD12: Robert | AE12: Wschodni | AF12: 35 | AG12: 507200
A13: 3 | B13: Mar | C13: Bob | D13: North | E13: 30 | F13: 353100 | AB13: 3 | AC13: Sty | AD13: Adam | AE13: Wschodni | AF13: 39 | AG13: 226000
A14: 4 | B14: Jan | C14: Frank | D14: North | E14: 35 | F14: 507200 | AB14: 4 | AC14: Sty | AD14: Zbigniew | AE14: Zachodni | AF14: 47 | AG14: 391000
A15: 5 | B15: Feb | C15: Frank | D15: North | E15: 74 | F15: 411800 | AB15: 5 | AC15: Sty | AD15: Wiesław | AE15: Zachodni | AF15: 58 | AG15: 283000
A16: 6 | B16: Mar | C16: Frank | D16: North | E16: 57 | F16: 258400 | AB16: 6 | AC16: Lut | AD16: Jan | AE16: Wschodni | AF16: 29 | AG16: 154000
A17: 7 | B17: Feb | C17: Jill | D17: North | E17: 46 | F17: 350400 | AB17: 7 | AC17: Lut | AD17: Robert | AE17: Wschodni | AF17: 44 | AG17: 558000
A18: 8 | B18: Mar | C18: Jill | D18: North | E18: 44 | F18: 532100 | AB18: 8 | AC18: Lut | AD18: Adam | AE18: Zachodni | AF18: 46 | AG18: 350000
A19: 9 | B19: Jan | C19: Mary | D19: South | E19: 39 | F19: 226700 | AB19: 9 | AC19: Lut | AD19: Zbigniew | AE19: Zachodni | AF19: 52 | AG19: 233000
A20: 10 | B20: Feb | C20: Mary | D20: South | E20: 52 | F20: 233800 | AB20: 10 | AC20: Lut | AD20: Wiesław | AE20: Zachodni | AF20: 74 | AG20: 411000
A21: 11 | B21: Mar | C21: Mary | D21: South | E21: 36 | F21: 134300 | AB21: 11 | AC21: Mar | AD21: Jan | AE21: Zachodni | AF21: 14 | AG21: 162000
A22: 12 | B22: Jan | C22: Paul | D22: South | E22: 25 | F22: 107600 | AB22: 12 | AC22: Mar | AD22: Robert | AE22: Zachodni | AF22: 30 | AG22: 363000
A23: 13 | B23: Feb | C23: Paul | D23: South | E23: 29 | F23: 154200 | AB23: 13 | AC23: Mar | AD23: Adam | AE23: Wschodni | AF23: 36 | AG23: 134000
A24: 14 | B24: Mar | C24: Paul | D24: South | E24: 13 | F24: 286000 | AB24: 14 | AC24: Mar | AD24: Zbigniew | AE24: Wschodni | AF24: 44 | AG24: 532000
A25: 15 | B25: Jan | C25: Randy | D25: South | E25: 47 | F25: 391600 | AB25: 15 | AC25: Mar | AD25: Wiesław | AE25: Wschodni | AF25: 57 | AG25: 258000
A26: 16 | B26: Feb | C26: Randy | D26: South | E26: 45 | F26: 258000 | AB26: 16 | AC26: Mar | AD26: Iwona | AE26: Zachodni | AF26: 14 | AG26: 162200
A27: 17 | B27: Mar | C27: Randy | D27: South | E27: 14 | F27: 162200 | AB27: 17 | AC27: Mar | AD27: Katarzyna | AE27: Wschodni | AF27: 36 | AG27: 134300

Sheet Task02
A4: For each effectiveness show number of cases "won" and "lost" for each company separately | AA4: For each effectiveness show number of cases "won" and "lost" for each company separately
A5: Build a pivot table here | AA5: Build a pivot table here
B7: In the table below: | Z7: W tabeli poniżej:
B8: how many dimensions do you see? | Z8: ile widzisz wymiarów
B10: how many metrics do you see? | Z10: ile widzisz miar
B12: how many the less important fields for pivot tables do you see? | Z12: ile widzisz mniej istotnych pól dla tabel przestawnych
A14: ID | B14: chambers | C14: address | D14: experience | E14: kind of case | F14: effectiveness | G14: fare for service | H14: days spent | I14: dayly fare | Z14: ID | AA14: zaspół adwokacki | AB14: adres | AC14: doświadczenie | AD14: rodzaj | AE14: wynik | AF14: opłata | AG14: liczba dni | AH14: dniówka
A15: 1 | B15: Lukas Company | C15: Żabia 14 | D15: 6 years | E15: merchant | F15: won | G15: 42000 | H15: 21 | I15: =G15/H15 -> 2000 | Z15: 1 | AA15: M&R Company | AB15: Piotrkowska 25 | AC15: 11 lat | AD15: nieruchomości | AE15: przegrana | AF15: 7500 | AG15: 5 | AH15: =AF15/AG15 -> 1500
A16: 2 | B16: M&R Company | C16: Piotrkowska 25 | D16: 11 years | E16: merchant | F16: lost | G16: 13000 | H16: 7 | I16: 1857.142857 | Z16: 2 | AA16: Lukas Company | AB16: Żabia 14 | AC16: 6 lat | AD16: nieruchomości | AE16: przegrana | AF16: 5000 | AG16: 3 | AH16: 1666.666667
A17: 3 | B17: Lukas Company | C17: Żabia 14 | D17: 6 years | E17: families | F17: lost | G17: 1800 | H17: 1 | I17: 1800 | Z17: 3 | AA17: Lukas Company | AB17: Żabia 14 | AC17: 6 lat | AD17: nieruchomości | AE17: przegrana | AF17: 4300 | AG17: 3 | AH17: 1433.333333
A18: 4 | B18: M&R Company | C18: Piotrkowska 25 | D18: 11 years | E18: families | F18: won | G18: 1800 | H18: 1 | I18: 1800 | Z18: 4 | AA18: Lukas Company | AB18: Żabia 14 | AC18: 6 lat | AD18: rodzinna | AE18: przegrana | AF18: 1800 | AG18: 1 | AH18: 1800
A19: 5 | B19: M&R Company | C19: Piotrkowska 25 | D19: 11 years | E19: merchant | F19: won | G19: 25000 | H19: 14 | I19: 1785.714286 | Z19: 5 | AA19: Lukas Company | AB19: Żabia 14 | AC19: 6 lat | AD19: rodzinna | AE19: przegrana | AF19: 1500 | AG19: 1 | AH19: 1500
A20: 6 | B20: Lukas Company | C20: Żabia 14 | D20: 6 years | E20: estate | F20: won | G20: 3500 | H20: 2 | I20: 1750 | Z20: 6 | AA20: Lukas Company | AB20: Żabia 14 | AC20: 6 lat | AD20: rodzinna | AE20: przegrana | AF20: 2700 | AG20: 2 | AH20: 1350
A21: 7 | B21: Lukas Company | C21: Żabia 14 | D21: 6 years | E21: merchant | F21: won | G21: 36000 | H21: 21 | I21: 1714.285714 | Z21: 7 | AA21: M&R Company | AB21: Piotrkowska 25 | AC21: 11 lat | AD21: gospodarcza | AE21: przegrana | AF21: 13000 | AG21: 7 | AH21: 1857.142857
A22: 8 | B22: Lukas Company | C22: Żabia 14 | D22: 6 years | E22: estate | F22: lost | G22: 5000 | H22: 3 | I22: 1666.666667 | Z22: 8 | AA22: M&R Company | AB22: Piotrkowska 25 | AC22: 11 lat | AD22: gospodarcza | AE22: przegrana | AF22: 22000 | AG22: 14 | AH22: 1571.428571
A23: 9 | B23: M&R Company | C23: Piotrkowska 25 | D23: 11 years | E23: estate | F23: won | G23: 5000 | H23: 3 | I23: 1666.666667 | Z23: 9 | AA23: M&R Company | AB23: Piotrkowska 25 | AC23: 11 lat | AD23: gospodarcza | AE23: przegrana | AF23: 15000 | AG23: 10 | AH23: 1500
A24: 10 | B24: Lukas Company | C24: Żabia 14 | D24: 6 years | E24: estate | F24: won | G24: 4800 | H24: 3 | I24: 1600 | Z24: 10 | AA24: M&R Company | AB24: Piotrkowska 25 | AC24: 11 lat | AD24: nieruchomości | AE24: wygrana | AF24: 5000 | AG24: 3 | AH24: 1666.666667
A25: 11 | B25: M&R Company | C25: Piotrkowska 25 | D25: 11 years | E25: merchant | F25: lost | G25: 22000 | H25: 14 | I25: 1571.428571 | Z25: 11 | AA25: M&R Company | AB25: Piotrkowska 25 | AC25: 11 lat | AD25: nieruchomości | AE25: wygrana | AF25: 3000 | AG25: 2 | AH25: 1500
A26: 12 | B26: Lukas Company | C26: Żabia 14 | D26: 6 years | E26: families | F26: lost | G26: 1500 | H26: 1 | I26: 1500 | Z26: 12 | AA26: M&R Company | AB26: Piotrkowska 25 | AC26: 11 lat | AD26: nieruchomości | AE26: wygrana | AF26: 6000 | AG26: 5 | AH26: 1200
A27: 13 | B27: Lukas Company | C27: Żabia 14 | D27: 6 years | E27: merchant | F27: won | G27: 21000 | H27: 14 | I27: 1500 | Z27: 13 | AA27: Lukas Company | AB27: Żabia 14 | AC27: 6 lat | AD27: nieruchomości | AE27: wygrana | AF27: 3500 | AG27: 2 | AH27: 1750
A28: 14 | B28: M&R Company | C28: Piotrkowska 25 | D28: 11 years | E28: estate | F28: lost | G28: 7500 | H28: 5 | I28: 1500 | Z28: 14 | AA28: Lukas Company | AB28: Żabia 14 | AC28: 6 lat | AD28: nieruchomości | AE28: wygrana | AF28: 4800 | AG28: 3 | AH28: 1600
A29: 15 | B29: M&R Company | C29: Piotrkowska 25 | D29: 11 years | E29: estate | F29: won | G29: 3000 | H29: 2 | I29: 1500 | Z29: 15 | AA29: M&R Company | AB29: Piotrkowska 25 | AC29: 11 lat | AD29: rodzinna | AE29: wygrana | AF29: 1800 | AG29: 1 | AH29: 1800
A30: 16 | B30: M&R Company | C30: Piotrkowska 25 | D30: 11 years | E30: families | F30: won | G30: 1500 | H30: 1 | I30: 1500 | Z30: 16 | AA30: M&R Company | AB30: Piotrkowska 25 | AC30: 11 lat | AD30: rodzinna | AE30: wygrana | AF30: 1500 | AG30: 1 | AH30: 1500
A31: 17 | B31: M&R Company | C31: Piotrkowska 25 | D31: 11 years | E31: families | F31: won | G31: 1500 | H31: 1 | I31: 1500 | Z31: 17 | AA31: M&R Company | AB31: Piotrkowska 25 | AC31: 11 lat | AD31: rodzinna | AE31: wygrana | AF31: 1500 | AG31: 1 | AH31: 1500
A32: 18 | B32: M&R Company | C32: Piotrkowska 25 | D32: 11 years | E32: merchant | F32: lost | G32: 15000 | H32: 10 | I32: 1500 | Z32: 18 | AA32: M&R Company | AB32: Piotrkowska 25 | AC32: 11 lat | AD32: rodzinna | AE32: wygrana | AF32: 2500 | AG32: 2 | AH32: 1250
A33: 19 | B33: Lukas Company | C33: Żabia 14 | D33: 6 years | E33: estate | F33: lost | G33: 4300 | H33: 3 | I33: 1433.333333 | Z33: 19 | AA33: M&R Company | AB33: Piotrkowska 25 | AC33: 11 lat | AD33: rodzinna | AE33: wygrana | AF33: 2000 | AG33: 2 | AH33: 1000
A34: 20 | B34: Lukas Company | C34: Żabia 14 | D34: 6 years | E34: families | F34: lost | G34: 2700 | H34: 2 | I34: 1350 | Z34: 20 | AA34: Lukas Company | AB34: Żabia 14 | AC34: 6 lat | AD34: rodzinna | AE34: wygrana | AF34: 2500 | AG34: 2 | AH34: 1250
A35: 21 | B35: Lukas Company | C35: Żabia 14 | D35: 6 years | E35: families | F35: won | G35: 2500 | H35: 2 | I35: 1250 | Z35: 21 | AA35: Lukas Company | AB35: Żabia 14 | AC35: 6 lat | AD35: rodzinna | AE35: wygrana | AF35: 1200 | AG35: 1 | AH35: 1200
A36: 22 | B36: M&R Company | C36: Piotrkowska 25 | D36: 11 years | E36: families | F36: won | G36: 2500 | H36: 2 | I36: 1250 | Z36: 22 | AA36: M&R Company | AB36: Piotrkowska 25 | AC36: 11 lat | AD36: gospodarcza | AE36: wygrana | AF36: 25000 | AG36: 14 | AH36: 1785.714286
A37: 23 | B37: Lukas Company | C37: Żabia 14 | D37: 6 years | E37: families | F37: won | G37: 1200 | H37: 1 | I37: 1200 | Z37: 23 | AA37: Lukas Company | AB37: Żabia 14 | AC37: 6 lat | AD37: gospodarcza | AE37: wygrana | AF37: 42000 | AG37: 21 | AH37: 2000
A38: 24 | B38: M&R Company | C38: Piotrkowska 25 | D38: 11 years | E38: estate | F38: won | G38: 6000 | H38: 5 | I38: 1200 | Z38: 24 | AA38: Lukas Company | AB38: Żabia 14 | AC38: 6 lat | AD38: gospodarcza | AE38: wygrana | AF38: 36000 | AG38: 21 | AH38: 1714.285714
A39: 25 | B39: Lukas Company | C39: Żabia 14 | D39: 6 years | E39: merchant | F39: won | G39: 15000 | H39: 14 | I39: 1071.428571 | Z39: 25 | AA39: Lukas Company | AB39: Żabia 14 | AC39: 6 lat | AD39: gospodarcza | AE39: wygrana | AF39: 21000 | AG39: 14 | AH39: 1500
A40: 26 | B40: M&R Company | C40: Piotrkowska 25 | D40: 11 years | E40: families | F40: won | G40: 2000 | H40: 2 | I40: 1000 | Z40: 26 | AA40: Lukas Company | AB40: Żabia 14 | AC40: 6 lat | AD40: gospodarcza | AE40: wygrana | AF40: 15000 | AG40: 14 | AH40: 1071.428571

Sheet Task03
A4: 1. for each country count orders | AA4: 1. for each country count orders
A5: 2. for each customer sum freight | AA5: 2. for each customer sum freight
A6: 3. for each ship via calculate average freight | AA6: 3. for each ship via calculate average freight
A7: 4. for each month in 2014 count orders | AA7: 4. for each month in 2014 count orders
A8: Build three separete pivot tables | AA8: Build 4 separete pivot tables
C10: In the table below: | AA10: W tabeli poniżej:
C11: how many dimensions do you see? | AA11: ile widzisz wymiarów
C13: how many metrics do you see? | AA13: ile widzisz miar
C15: how many the less important fields for pivot tables do you see? | AA15: ile widzisz mniej istotnych pól dla tabel przestawnych
A18: OrderID | B18: CustomerID | C18: EmployeeID | D18: OrderDate | E18: ShipVia | F18: Freight | AA18: ID zamówienia | AB18: Klient | AC18: Pracownik | AD18: Data zamówienia | AE18: ID spedytora | AF18: Fracht
A19: 10248 | B19: VINET | C19: 5 | D19: 2013-07-04 | E19: 3 | F19: 32.38 | AA19: 10248 | AB19: VINET | AC19: 5 | AD19: 2013-07-04 | AE19: 3 | AF19: 32.38
A20: 10249 | B20: TOMSP | C20: 6 | D20: 2013-07-05 | E20: 1 | F20: 11.61 | AA20: 10249 | AB20: TOMSP | AC20: 6 | AD20: 2013-07-05 | AE20: 1 | AF20: 11.61
A21: 10250 | B21: HANAR | C21: 4 | D21: 2013-07-08 | E21: 2 | F21: 65.83 | AA21: 10250 | AB21: HANAR | AC21: 4 | AD21: 2013-07-08 | AE21: 2 | AF21: 65.83
A22: 10251 | B22: VICTE | C22: 3 | D22: 2013-07-08 | E22: 1 | F22: 41.34 | AA22: 10251 | AB22: VICTE | AC22: 3 | AD22: 2013-07-08 | AE22: 1 | AF22: 41.34
A23: 10252 | B23: SUPRD | C23: 4 | D23: 2013-07-09 | E23: 2 | F23: 51.3 | AA23: 10252 | AB23: SUPRD | AC23: 4 | AD23: 2013-07-09 | AE23: 2 | AF23: 51.3
A24: 10253 | B24: HANAR | C24: 3 | D24: 2013-07-10 | E24: 2 | F24: 58.17 | AA24: 10253 | AB24: HANAR | AC24: 3 | AD24: 2013-07-10 | AE24: 2 | AF24: 58.17
A25: 10254 | B25: CHOPS | C25: 5 | D25: 2013-07-11 | E25: 2 | F25: 22.98 | AA25: 10254 | AB25: CHOPS | AC25: 5 | AD25: 2013-07-11 | AE25: 2 | AF25: 22.98
A26: 10255 | B26: RICSU | C26: 9 | D26: 2013-07-12 | E26: 3 | F26: 148.33 | AA26: 10255 | AB26: RICSU | AC26: 9 | AD26: 2013-07-12 | AE26: 3 | AF26: 148.33
A27: 10256 | B27: WELLI | C27: 3 | D27: 2013-07-15 | E27: 2 | F27: 13.97 | AA27: 10256 | AB27: WELLI | AC27: 3 | AD27: 2013-07-15 | AE27: 2 | AF27: 13.97
A28: 10257 | B28: HILAA | C28: 4 | D28: 2013-07-16 | E28: 3 | F28: 81.91 | AA28: 10257 | AB28: HILAA | AC28: 4 | AD28: 2013-07-16 | AE28: 3 | AF28: 81.91
A29: 10258 | B29: ERNSH | C29: 1 | D29: 2013-07-17 | E29: 1 | F29: 140.51 | AA29: 10258 | AB29: ERNSH | AC29: 1 | AD29: 2013-07-17 | AE29: 1 | AF29: 140.51
A30: 10259 | B30: CENTC | C30: 4 | D30: 2013-07-18 | E30: 3 | F30: 3.25 | AA30: 10259 | AB30: CENTC | AC30: 4 | AD30: 2013-07-18 | AE30: 3 | AF30: 3.25
A31: 10260 | B31: OTTIK | C31: 4 | D31: 2013-07-19 | E31: 1 | F31: 55.09 | AA31: 10260 | AB31: OTTIK | AC31: 4 | AD31: 2013-07-19 | AE31: 1 | AF31: 55.09
A32: 10261 | B32: QUEDE | C32: 4 | D32: 2013-07-19 | E32: 2 | F32: 3.05 | AA32: 10261 | AB32: QUEDE | AC32: 4 | AD32: 2013-07-19 | AE32: 2 | AF32: 3.05
A33: 10262 | B33: RATTC | C33: 8 | D33: 2013-07-22 | E33: 3 | F33: 48.29 | AA33: 10262 | AB33: RATTC | AC33: 8 | AD33: 2013-07-22 | AE33: 3 | AF33: 48.29
A34: 10263 | B34: ERNSH | C34: 9 | D34: 2013-07-23 | E34: 3 | F34: 146.06 | AA34: 10263 | AB34: ERNSH | AC34: 9 | AD34: 2013-07-23 | AE34: 3 | AF34: 146.06
A35: 10264 | B35: FOLKO | C35: 6 | D35: 2013-07-24 | E35: 3 | F35: 3.67 | AA35: 10264 | AB35: FOLKO | AC35: 6 | AD35: 2013-07-24 | AE35: 3 | AF35: 3.67
A36: 10265 | B36: BLONP | C36: 2 | D36: 2013-07-25 | E36: 1 | F36: 55.28 | AA36: 10265 | AB36: BLONP | AC36: 2 | AD36: 2013-07-25 | AE36: 1 | AF36: 55.28
A37: 10266 | B37: WARTH | C37: 3 | D37: 2013-07-26 | E37: 3 | F37: 25.73 | AA37: 10266 | AB37: WARTH | AC37: 3 | AD37: 2013-07-26 | AE37: 3 | AF37: 25.73
A38: 10267 | B38: FRANK | C38: 4 | D38: 2013-07-29 | E38: 1 | F38: 208.58 | AA38: 10267 | AB38: FRANK | AC38: 4 | AD38: 2013-07-29 | AE38: 1 | AF38: 208.58
A39: 10268 | B39: GROSR | C39: 8 | D39: 2013-07-30 | E39: 3 | F39: 66.29 | AA39: 10268 | AB39: GROSR | AC39: 8 | AD39: 2013-07-30 | AE39: 3 | AF39: 66.29
A40: 10269 | B40: WHITC | C40: 5 | D40: 2013-07-31 | E40: 1 | F40: 4.56 | AA40: 10269 | AB40: WHITC | AC40: 5 | AD40: 2013-07-31 | AE40: 1 | AF40: 4.56
A41: 10270 | B41: WARTH | C41: 1 | D41: 2013-08-01 | E41: 1 | F41: 136.54 | AA41: 10270 | AB41: WARTH | AC41: 1 | AD41: 2013-08-01 | AE41: 1 | AF41: 136.54
A42: 10271 | B42: SPLIR | C42: 6 | D42: 2013-08-01 | E42: 2 | F42: 4.54 | AA42: 10271 | AB42: SPLIR | AC42: 6 | AD42: 2013-08-01 | AE42: 2 | AF42: 4.54
A43: 10272 | B43: RATTC | C43: 6 | D43: 2013-08-02 | E43: 2 | F43: 98.03 | AA43: 10272 | AB43: RATTC | AC43: 6 | AD43: 2013-08-02 | AE43: 2 | AF43: 98.03
A44: 10273 | B44: QUICK | C44: 3 | D44: 2013-08-05 | E44: 3 | F44: 76.07 | AA44: 10273 | AB44: QUICK | AC44: 3 | AD44: 2013-08-05 | AE44: 3 | AF44: 76.07
A45: 10274 | B45: VINET | C45: 6 | D45: 2013-08-06 | E45: 1 | F45: 6.01 | AA45: 10274 | AB45: VINET | AC45: 6 | AD45: 2013-08-06 | AE45: 1 | AF45: 6.01
A46: 10275 | B46: MAGAA | C46: 1 | D46: 2013-08-07 | E46: 1 | F46: 26.93 | AA46: 10275 | AB46: MAGAA | AC46: 1 | AD46: 2013-08-07 | AE46: 1 | AF46: 26.93
A47: 10276 | B47: TORTU | C47: 8 | D47: 2013-08-08 | E47: 3 | F47: 13.84 | AA47: 10276 | AB47: TORTU | AC47: 8 | AD47: 2013-08-08 | AE47: 3 | AF47: 13.84
A48: 10277 | B48: MORGK | C48: 2 | D48: 2013-08-09 | E48: 3 | F48: 125.77 | AA48: 10277 | AB48: MORGK | AC48: 2 | AD48: 2013-08-09 | AE48: 3 | AF48: 125.77
A49: 10278 | B49: BERGS | C49: 8 | D49: 2013-08-12 | E49: 2 | F49: 92.69 | AA49: 10278 | AB49: BERGS | AC49: 8 | AD49: 2013-08-12 | AE49: 2 | AF49: 92.69
A50: 10279 | B50: LEHMS | C50: 8 | D50: 2013-08-13 | E50: 2 | F50: 25.83 | AA50: 10279 | AB50: LEHMS | AC50: 8 | AD50: 2013-08-13 | AE50: 2 | AF50: 25.83
A51: 10280 | B51: BERGS | C51: 2 | D51: 2013-08-14 | E51: 1 | F51: 8.98 | AA51: 10280 | AB51: BERGS | AC51: 2 | AD51: 2013-08-14 | AE51: 1 | AF51: 8.98
A52: 10281 | B52: ROMEY | C52: 4 | D52: 2013-08-14 | E52: 1 | F52: 2.94 | AA52: 10281 | AB52: ROMEY | AC52: 4 | AD52: 2013-08-14 | AE52: 1 | AF52: 2.94
A53: 10282 | B53: ROMEY | C53: 4 | D53: 2013-08-15 | E53: 1 | F53: 12.69 | AA53: 10282 | AB53: ROMEY | AC53: 4 | AD53: 2013-08-15 | AE53: 1 | AF53: 12.69
A54: 10283 | B54: LILAS | C54: 3 | D54: 2013-08-16 | E54: 3 | F54: 84.81 | AA54: 10283 | AB54: LILAS | AC54: 3 | AD54: 2013-08-16 | AE54: 3 | AF54: 84.81
A55: 10284 | B55: LEHMS | C55: 4 | D55: 2013-08-19 | E55: 1 | F55: 76.56 | AA55: 10284 | AB55: LEHMS | AC55: 4 | AD55: 2013-08-19 | AE55: 1 | AF55: 76.56
A56: 10285 | B56: QUICK | C56: 1 | D56: 2013-08-20 | E56: 2 | F56: 76.83 | AA56: 10285 | AB56: QUICK | AC56: 1 | AD56: 2013-08-20 | AE56: 2 | AF56: 76.83
A57: 10286 | B57: QUICK | C57: 8 | D57: 2013-08-21 | E57: 3 | F57: 229.24 | AA57: 10286 | AB57: QUICK | AC57: 8 | AD57: 2013-08-21 | AE57: 3 | AF57: 229.24
A58: 10287 | B58: RICAR | C58: 8 | D58: 2013-08-22 | E58: 3 | F58: 12.76 | AA58: 10287 | AB58: RICAR | AC58: 8 | AD58: 2013-08-22 | AE58: 3 | AF58: 12.76
A59: 10288 | B59: REGGC | C59: 4 | D59: 2013-08-23 | E59: 1 | F59: 7.45 | AA59: 10288 | AB59: REGGC | AC59: 4 | AD59: 2013-08-23 | AE59: 1 | AF59: 7.45
A60: 10289 | B60: BSBEV | C60: 7 | D60: 2013-08-26 | E60: 3 | F60: 22.77 | AA60: 10289 | AB60: BSBEV | AC60: 7 | AD60: 2013-08-26 | AE60: 3 | AF60: 22.77
A61: 10290 | B61: COMMI | C61: 8 | D61: 2013-08-27 | E61: 1 | F61: 79.7 | AA61: 10290 | AB61: COMMI | AC61: 8 | AD61: 2013-08-27 | AE61: 1 | AF61: 79.7
A62: 10291 | B62: QUEDE | C62: 6 | D62: 2013-08-27 | E62: 2 | F62: 6.4 | AA62: 10291 | AB62: QUEDE | AC62: 6 | AD62: 2013-08-27 | AE62: 2 | AF62: 6.4
A63: 10292 | B63: TRADH | C63: 1 | D63: 2013-08-28 | E63: 2 | F63: 1.35 | AA63: 10292 | AB63: TRADH | AC63: 1 | AD63: 2013-08-28 | AE63: 2 | AF63: 1.35
A64: 10293 | B64: TORTU | C64: 1 | D64: 2013-08-29 | E64: 3 | F64: 21.18 | AA64: 10293 | AB64: TORTU | AC64: 1 | AD64: 2013-08-29 | AE64: 3 | AF64: 21.18
A65: 10294 | B65: RATTC | C65: 4 | D65: 2013-08-30 | E65: 2 | F65: 147.26 | AA65: 10294 | AB65: RATTC | AC65: 4 | AD65: 2013-08-30 | AE65: 2 | AF65: 147.26
A66: 10295 | B66: VINET | C66: 2 | D66: 2013-09-02 | E66: 2 | F66: 1.15 | AA66: 10295 | AB66: VINET | AC66: 2 | AD66: 2013-09-02 | AE66: 2 | AF66: 1.15
A67: 10296 | B67: LILAS | C67: 6 | D67: 2013-09-03 | E67: 1 | F67: 0.12 | AA67: 10296 | AB67: LILAS | AC67: 6 | AD67: 2013-09-03 | AE67: 1 | AF67: 0.12
A68: 10297 | B68: BLONP | C68: 5 | D68: 2013-09-04 | E68: 2 | F68: 5.74 | AA68: 10297 | AB68: BLONP | AC68: 5 | AD68: 2013-09-04 | AE68: 2 | AF68: 5.74
A69: 10298 | B69: HUNGO | C69: 6 | D69: 2013-09-05 | E69: 2 | F69: 168.22 | AA69: 10298 | AB69: HUNGO | AC69: 6 | AD69: 2013-09-05 | AE69: 2 | AF69: 168.22
A70: 10299 | B70: RICAR | C70: 4 | D70: 2013-09-06 | E70: 2 | F70: 29.76 | AA70: 10299 | AB70: RICAR | AC70: 4 | AD70: 2013-09-06 | AE70: 2 | AF70: 29.76
A71: 10300 | B71: MAGAA | C71: 2 | D71: 2013-09-09 | E71: 2 | F71: 17.68 | AA71: 10300 | AB71: MAGAA | AC71: 2 | AD71: 2013-09-09 | AE71: 2 | AF71: 17.68
A72: 10301 | B72: WANDK | C72: 8 | D72: 2013-09-09 | E72: 2 | F72: 45.08 | AA72: 10301 | AB72: WANDK | AC72: 8 | AD72: 2013-09-09 | AE72: 2 | AF72: 45.08
A73: 10302 | B73: SUPRD | C73: 4 | D73: 2013-09-10 | E73: 2 | F73: 6.27 | AA73: 10302 | AB73: SUPRD | AC73: 4 | AD73: 2013-09-10 | AE73: 2 | AF73: 6.27
A74: 10303 | B74: GODOS | C74: 7 | D74: 2013-09-11 | E74: 2 | F74: 107.83 | AA74: 10303 | AB74: GODOS | AC74: 7 | AD74: 2013-09-11 | AE74: 2 | AF74: 107.83
A75: 10304 | B75: TORTU | C75: 1 | D75: 2013-09-12 | E75: 2 | F75: 63.79 | AA75: 10304 | AB75: TORTU | AC75: 1 | AD75: 2013-09-12 | AE75: 2 | AF75: 63.79
A76: 10305 | B76: OLDWO | C76: 8 | D76: 2013-09-13 | E76: 3 | F76: 257.62 | AA76: 10305 | AB76: OLDWO | AC76: 8 | AD76: 2013-09-13 | AE76: 3 | AF76: 257.62
A77: 10306 | B77: ROMEY | C77: 1 | D77: 2013-09-16 | E77: 3 | F77: 7.56 | AA77: 10306 | AB77: ROMEY | AC77: 1 | AD77: 2013-09-16 | AE77: 3 | AF77: 7.56
A78: 10307 | B78: LONEP | C78: 2 | D78: 2013-09-17 | E78: 2 | F78: 0.56 | AA78: 10307 | AB78: LONEP | AC78: 2 | AD78: 2013-09-17 | AE78: 2 | AF78: 0.56
A79: 10308 | B79: ANATR | C79: 7 | D79: 2013-09-18 | E79: 3 | F79: 1.61 | AA79: 10308 | AB79: ANATR | AC79: 7 | AD79: 2013-09-18 | AE79: 3 | AF79: 1.61
A80: 10309 | B80: HUNGO | C80: 3 | D80: 2013-09-19 | E80: 1 | F80: 47.3 | AA80: 10309 | AB80: HUNGO | AC80: 3 | AD80: 2013-09-19 | AE80: 1 | AF80: 47.3
A81: 10310 | B81: THEBI | C81: 8 | D81: 2013-09-20 | E81: 2 | F81: 17.52 | AA81: 10310 | AB81: THEBI | AC81: 8 | AD81: 2013-09-20 | AE81: 2 | AF81: 17.52
A82: 10311 | B82: DUMON | C82: 1 | D82: 2013-09-20 | E82: 3 | F82: 24.69 | AA82: 10311 | AB82: DUMON | AC82: 1 | AD82: 2013-09-20 | AE82: 3 | AF82: 24.69
A83: 10312 | B83: WANDK | C83: 2 | D83: 2013-09-23 | E83: 2 | F83: 40.26 | AA83: 10312 | AB83: WANDK | AC83: 2 | AD83: 2013-09-23 | AE83: 2 | AF83: 40.26
A84: 10313 | B84: QUICK | C84: 2 | D84: 2013-09-24 | E84: 2 | F84: 1.96 | AA84: 10313 | AB84: QUICK | AC84: 2 | AD84: 2013-09-24 | AE84: 2 | AF84: 1.96
A85: 10314 | B85: RATTC | C85: 1 | D85: 2013-09-25 | E85: 2 | F85: 74.16 | AA85: 10314 | AB85: RATTC | AC85: 1 | AD85: 2013-09-25 | AE85: 2 | AF85: 74.16
A86: 10315 | B86: ISLAT | C86: 4 | D86: 2013-09-26 | E86: 2 | F86: 41.76 | AA86: 10315 | AB86: ISLAT | AC86: 4 | AD86: 2013-09-26 | AE86: 2 | AF86: 41.76
A87: 10316 | B87: RATTC | C87: 1 | D87: 2013-09-27 | E87: 3 | F87: 150.15 | AA87: 10316 | AB87: RATTC | AC87: 1 | AD87: 2013-09-27 | AE87: 3 | AF87: 150.15
A88: 10317 | B88: LONEP | C88: 6 | D88: 2013-09-30 | E88: 1 | F88: 12.69 | AA88: 10317 | AB88: LONEP | AC88: 6 | AD88: 2013-09-30 | AE88: 1 | AF88: 12.69
A89: 10318 | B89: ISLAT | C89: 8 | D89: 2013-10-01 | E89: 2 | F89: 4.73 | AA89: 10318 | AB89: ISLAT | AC89: 8 | AD89: 2013-10-01 | AE89: 2 | AF89: 4.73
A90: 10319 | B90: TORTU | C90: 7 | D90: 2013-10-02 | E90: 3 | F90: 64.5 | AA90: 10319 | AB90: TORTU | AC90: 7 | AD90: 2013-10-02 | AE90: 3 | AF90: 64.5
A91: 10320 | B91: WARTH | C91: 5 | D91: 2013-10-03 | E91: 3 | F91: 34.57 | AA91: 10320 | AB91: WARTH | AC91: 5 | AD91: 2013-10-03 | AE91: 3 | AF91: 34.57
A92: 10321 | B92: ISLAT | C92: 3 | D92: 2013-10-03 | E92: 2 | F92: 3.43 | AA92: 10321 | AB92: ISLAT | AC92: 3 | AD92: 2013-10-03 | AE92: 2 | AF92: 3.43
A93: 10322 | B93: PERIC | C93: 7 | D93: 2013-10-04 | E93: 3 | F93: 0.4 | AA93: 10322 | AB93: PERIC | AC93: 7 | AD93: 2013-10-04 | AE93: 3 | AF93: 0.4
A94: 10323 | B94: KOENE | C94: 4 | D94: 2013-10-07 | E94: 1 | F94: 4.88 | AA94: 10323 | AB94: KOENE | AC94: 4 | AD94: 2013-10-07 | AE94: 1 | AF94: 4.88
A95: 10324 | B95: SAVEA | C95: 9 | D95: 2013-10-08 | E95: 1 | F95: 214.27 | AA95: 10324 | AB95: SAVEA | AC95: 9 | AD95: 2013-10-08 | AE95: 1 | AF95: 214.27
A96: 10325 | B96: KOENE | C96: 1 | D96: 2013-10-09 | E96: 3 | F96: 64.86 | AA96: 10325 | AB96: KOENE | AC96: 1 | AD96: 2013-10-09 | AE96: 3 | AF96: 64.86
A97: 10326 | B97: BOLID | C97: 4 | D97: 2013-10-10 | E97: 2 | F97: 77.92 | AA97: 10326 | AB97: BOLID | AC97: 4 | AD97: 2013-10-10 | AE97: 2 | AF97: 77.92
A98: 10327 | B98: FOLKO | C98: 2 | D98: 2013-10-11 | E98: 1 | F98: 63.36 | AA98: 10327 | AB98: FOLKO | AC98: 2 | AD98: 2013-10-11 | AE98: 1 | AF98: 63.36
A99: 10328 | B99: FURIB | C99: 4 | D99: 2013-10-14 | E99: 3 | F99: 87.03 | AA99: 10328 | AB99: FURIB | AC99: 4 | AD99: 2013-10-14 | AE99: 3 | AF99: 87.03
A100: 10329 | B100: SPLIR | C100: 4 | D100: 2013-10-15 | E100: 2 | F100: 191.67 | AA100: 10329 | AB100: SPLIR | AC100: 4 | AD100: 2013-10-15 | AE100: 2 | AF100: 191.67
A101: 10330 | B101: LILAS | C101: 3 | D101: 2013-10-16 | E101: 1 | F101: 12.75 | AA101: 10330 | AB101: LILAS | AC101: 3 | AD101: 2013-10-16 | AE101: 1 | AF101: 12.75
A102: 10331 | B102: BONAP | C102: 9 | D102: 2013-10-16 | E102: 1 | F102: 10.19 | AA102: 10331 | AB102: BONAP | AC102: 9 | AD102: 2013-10-16 | AE102: 1 | AF102: 10.19
A103: 10332 | B103: MEREP | C103: 3 | D103: 2013-10-17 | E103: 2 | F103: 52.84 | AA103: 10332 | AB103: MEREP | AC103: 3 | AD103: 2013-10-17 | AE103: 2 | AF103: 52.84
A104: 10333 | B104: WARTH | C104: 5 | D104: 2013-10-18 | E104: 3 | F104: 0.59 | AA104: 10333 | AB104: WARTH | AC104: 5 | AD104: 2013-10-18 | AE104: 3 | AF104: 0.59
A105: 10334 | B105: VICTE | C105: 8 | D105: 2013-10-21 | E105: 2 | F105: 8.56 | AA105: 10334 | AB105: VICTE | AC105: 8 | AD105: 2013-10-21 | AE105: 2 | AF105: 8.56
A106: 10335 | B106: HUNGO | C106: 7 | D106: 2013-10-22 | E106: 2 | F106: 42.11 | AA106: 10335 | AB106: HUNGO | AC106: 7 | AD106: 2013-10-22 | AE106: 2 | AF106: 42.11
A107: 10336 | B107: PRINI | C107: 7 | D107: 2013-10-23 | E107: 2 | F107: 15.51 | AA107: 10336 | AB107: PRINI | AC107: 7 | AD107: 2013-10-23 | AE107: 2 | AF107: 15.51
A108: 10337 | B108: FRANK | C108: 4 | D108: 2013-10-24 | E108: 3 | F108: 108.26 | AA108: 10337 | AB108: FRANK | AC108: 4 | AD108: 2013-10-24 | AE108: 3 | AF108: 108.26
A109: 10338 | B109: OLDWO | C109: 4 | D109: 2013-10-25 | E109: 3 | F109: 84.21 | AA109: 10338 | AB109: OLDWO | AC109: 4 | AD109: 2013-10-25 | AE109: 3 | AF109: 84.21
A110: 10339 | B110: MEREP | C110: 2 | D110: 2013-10-28 | E110: 2 | F110: 15.66 | AA110: 10339 | AB110: MEREP | AC110: 2 | AD110: 2013-10-28 | AE110: 2 | AF110: 15.66
A111: 10340 | B111: BONAP | C111: 1 | D111: 2013-10-29 | E111: 3 | F111: 166.31 | AA111: 10340 | AB111: BONAP | AC111: 1 | AD111: 2013-10-29 | AE111: 3 | AF111: 166.31
A112: 10341 | B112: SIMOB | C112: 7 | D112: 2013-10-29 | E112: 3 | F112: 26.78 | AA112: 10341 | AB112: SIMOB | AC112: 7 | AD112: 2013-10-29 | AE112: 3 | AF112: 26.78
A113: 10342 | B113: FRANK | C113: 4 | D113: 2013-10-30 | E113: 2 | F113: 54.83 | AA113: 10342 | AB113: FRANK | AC113: 4 | AD113: 2013-10-30 | AE113: 2 | AF113: 54.83
A114: 10343 | B114: LEHMS | C114: 4 | D114: 2013-10-31 | E114: 1 | F114: 110.37 | AA114: 10343 | AB114: LEHMS | AC114: 4 | AD114: 2013-10-31 | AE114: 1 | AF114: 110.37
A115: 10344 | B115: WHITC | C115: 4 | D115: 2013-11-01 | E115: 2 | F115: 23.29 | AA115: 10344 | AB115: WHITC | AC115: 4 | AD115: 2013-11-01 | AE115: 2 | AF115: 23.29
A116: 10345 | B116: QUICK | C116: 2 | D116: 2013-11-04 | E116: 2 | F116: 249.06 | AA116: 10345 | AB116: QUICK | AC116: 2 | AD116: 2013-11-04 | AE116: 2 | AF116: 249.06
A117: 10346 | B117: RATTC | C117: 3 | D117: 2013-11-05 | E117: 3 | F117: 142.08 | AA117: 10346 | AB117: RATTC | AC117: 3 | AD117: 2013-11-05 | AE117: 3 | AF117: 142.08
A118: 10347 | B118: FAMIA | C118: 4 | D118: 2013-11-06 | E118: 3 | F118: 3.1 | AA118: 10347 | AB118: FAMIA | AC118: 4 | AD118: 2013-11-06 | AE118: 3 | AF118: 3.1
A119: 10348 | B119: WANDK | C119: 4 | D119: 2013-11-07 | E119: 2 | F119: 0.78 | AA119: 10348 | AB119: WANDK | AC119: 4 | AD119: 2013-11-07 | AE119: 2 | AF119: 0.78
A120: 10349 | B120: SPLIR | C120: 7 | D120: 2013-11-08 | E120: 1 | F120: 8.63 | AA120: 10349 | AB120: SPLIR | AC120: 7 | AD120: 2013-11-08 | AE120: 1 | AF120: 8.63
A121: 10350 | B121: LAMAI | C121: 6 | D121: 2013-11-11 | E121: 2 | F121: 64.19 | AA121: 10350 | AB121: LAMAI | AC121: 6 | AD121: 2013-11-11 | AE121: 2 | AF121: 64.19
A122: 10351 | B122: ERNSH | C122: 1 | D122: 2013-11-11 | E122: 1 | F122: 162.33 | AA122: 10351 | AB122: ERNSH | AC122: 1 | AD122: 2013-11-11 | AE122: 1 | AF122: 162.33
A123: 10352 | B123: FURIB | C123: 3 | D123: 2013-11-12 | E123: 3 | F123: 1.3 | AA123: 10352 | AB123: FURIB | AC123: 3 | AD123: 2013-11-12 | AE123: 3 | AF123: 1.3
A124: 10353 | B124: PICCO | C124: 7 | D124: 2013-11-13 | E124: 3 | F124: 360.63 | AA124: 10353 | AB124: PICCO | AC124: 7 | AD124: 2013-11-13 | AE124: 3 | AF124: 360.63
A125: 10354 | B125: PERIC | C125: 8 | D125: 2013-11-14 | E125: 3 | F125: 53.8 | AA125: 10354 | AB125: PERIC | AC125: 8 | AD125: 2013-11-14 | AE125: 3 | AF125: 53.8
A126: 10355 | B126: AROUT | C126: 6 | D126: 2013-11-15 | E126: 1 | F126: 41.95 | AA126: 10355 | AB126: AROUT | AC126: 6 | AD126: 2013-11-15 | AE126: 1 | AF126: 41.95
A127: 10356 | B127: WANDK | C127: 6 | D127: 2013-11-18 | E127: 2 | F127: 36.71 | AA127: 10356 | AB127: WANDK | AC127: 6 | AD127: 2013-11-18 | AE127: 2 | AF127: 36.71
A128: 10357 | B128: LILAS | C128: 1 | D128: 2013-11-19 | E128: 3 | F128: 34.88 | AA128: 10357 | AB128: LILAS | AC128: 1 | AD128: 2013-11-19 | AE128: 3 | AF128: 34.88
A129: 10358 | B129: LAMAI | C129: 5 | D129: 2013-11-20 | E129: 1 | F129: 19.64 | AA129: 10358 | AB129: LAMAI | AC129: 5 | AD129: 2013-11-20 | AE129: 1 | AF129: 19.64
A130: 10359 | B130: SEVES | C130: 5 | D130: 2013-11-21 | E130: 3 | F130: 288.43 | AA130: 10359 | AB130: SEVES | AC130: 5 | AD130: 2013-11-21 | AE130: 3 | AF130: 288.43
A131: 10360 | B131: BLONP | C131: 4 | D131: 2013-11-22 | E131: 3 | F131: 131.7 | AA131: 10360 | AB131: BLONP | AC131: 4 | AD131: 2013-11-22 | AE131: 3 | AF131: 131.7
A132: 10361 | B132: QUICK | C132: 1 | D132: 2013-11-22 | E132: 2 | F132: 183.17 | AA132: 10361 | AB132: QUICK | AC132: 1 | AD132: 2013-11-22 | AE132: 2 | AF132: 183.17
A133: 10362 | B133: BONAP | C133: 3 | D133: 2013-11-25 | E133: 1 | F133: 96.04 | AA133: 10362 | AB133: BONAP | AC133: 3 | AD133: 2013-11-25 | AE133: 1 | AF133: 96.04
A134: 10363 | B134: DRACD | C134: 4 | D134: 2013-11-26 | E134: 3 | F134: 30.54 | AA134: 10363 | AB134: DRACD | AC134: 4 | AD134: 2013-11-26 | AE134: 3 | AF134: 30.54
A135: 10364 | B135: EASTC | C135: 1 | D135: 2013-11-26 | E135: 1 | F135: 71.97 | AA135: 10364 | AB135: EASTC | AC135: 1 | AD135: 2013-11-26 | AE135: 1 | AF135: 71.97
A136: 10365 | B136: ANTON | C136: 3 | D136: 2013-11-27 | E136: 2 | F136: 22 | AA136: 10365 | AB136: ANTON | AC136: 3 | AD136: 2013-11-27 | AE136: 2 | AF136: 22
A137: 10366 | B137: GALED | C137: 8 | D137: 2013-11-28 | E137: 2 | F137: 10.14 | AA137: 10366 | AB137: GALED | AC137: 8 | AD137: 2013-11-28 | AE137: 2 | AF137: 10.14
A138: 10367 | B138: VAFFE | C138: 7 | D138: 2013-11-28 | E138: 3 | F138: 13.55 | AA138: 10367 | AB138: VAFFE | AC138: 7 | AD138: 2013-11-28 | AE138: 3 | AF138: 13.55
A139: 10368 | B139: ERNSH | C139: 2 | D139: 2013-11-29 | E139: 2 | F139: 101.95 | AA139: 10368 | AB139: ERNSH | AC139: 2 | AD139: 2013-11-29 | AE139: 2 | AF139: 101.95
A140: 10369 | B140: SPLIR | C140: 8 | D140: 2013-12-02 | E140: 2 | F140: 195.68 | AA140: 10369 | AB140: SPLIR | AC140: 8 | AD140: 2013-12-02 | AE140: 2 | AF140: 195.68
A141: 10370 | B141: CHOPS | C141: 6 | D141: 2013-12-03 | E141: 2 | F141: 1.17 | AA141: 10370 | AB141: CHOPS | AC141: 6 | AD141: 2013-12-03 | AE141: 2 | AF141: 1.17
A142: 10371 | B142: LAMAI | C142: 1 | D142: 2013-12-03 | E142: 1 | F142: 1 | AA142: 10371 | AB142: LAMAI | AC142: 1 | AD142: 2013-12-03 | AE142: 1 | AF142: 0.45
A143: 10372 | B143: QUEEN | C143: 5 | D143: 2013-12-04 | E143: 2 | F143: 890.78 | AA143: 10372 | AB143: QUEEN | AC143: 5 | AD143: 2013-12-04 | AE143: 2 | AF143: 890.78
A144: 10373 | B144: HUNGO | C144: 4 | D144: 2013-12-05 | E144: 3 | F144: 124.12 | AA144: 10373 | AB144: HUNGO | AC144: 4 | AD144: 2013-12-05 | AE144: 3 | AF144: 124.12
A145: 10374 | B145: WOLZA | C145: 1 | D145: 2013-12-05 | E145: 3 | F145: 3.94 | AA145: 10374 | AB145: WOLZA | AC145: 1 | AD145: 2013-12-05 | AE145: 3 | AF145: 3.94
A146: 10375 | B146: HUNGC | C146: 3 | D146: 2013-12-06 | E146: 2 | F146: 20.12 | AA146: 10375 | AB146: HUNGC | AC146: 3 | AD146: 2013-12-06 | AE146: 2 | AF146: 20.12
A147: 10376 | B147: MEREP | C147: 1 | D147: 2013-12-09 | E147: 2 | F147: 20.39 | AA147: 10376 | AB147: MEREP | AC147: 1 | AD147: 2013-12-09 | AE147: 2 | AF147: 20.39
A148: 10377 | B148: SEVES | C148: 1 | D148: 2013-12-09 | E148: 3 | F148: 22.21 | AA148: 10377 | AB148: SEVES | AC148: 1 | AD148: 2013-12-09 | AE148: 3 | AF148: 22.21
A149: 10378 | B149: FOLKO | C149: 5 | D149: 2013-12-10 | E149: 3 | F149: 5.44 | AA149: 10378 | AB149: FOLKO | AC149: 5 | AD149: 2013-12-10 | AE149: 3 | AF149: 5.44
A150: 10379 | B150: QUEDE | C150: 2 | D150: 2013-12-11 | E150: 1 | F150: 45.03 | AA150: 10379 | AB150: QUEDE | AC150: 2 | AD150: 2013-12-11 | AE150: 1 | AF150: 45.03
A151: 10380 | B151: HUNGO | C151: 8 | D151: 2013-12-12 | E151: 3 | F151: 35.03 | AA151: 10380 | AB151: HUNGO | AC151: 8 | AD151: 2013-12-12 | AE151: 3 | AF151: 35.03
A152: 10381 | B152: LILAS | C152: 3 | D152: 2013-12-12 | E152: 3 | F152: 7.99 | AA152: 10381 | AB152: LILAS | AC152: 3 | AD152: 2013-12-12 | AE152: 3 | AF152: 7.99
A153: 10382 | B153: ERNSH | C153: 4 | D153: 2013-12-13 | E153: 1 | F153: 94.77 | AA153: 10382 | AB153: ERNSH | AC153: 4 | AD153: 2013-12-13 | AE153: 1 | AF153: 94.77
A154: 10383 | B154: AROUT | C154: 8 | D154: 2013-12-16 | E154: 3 | F154: 34.24 | AA154: 10383 | AB154: AROUT | AC154: 8 | AD154: 2013-12-16 | AE154: 3 | AF154: 34.24
A155: 10384 | B155: BERGS | C155: 3 | D155: 2013-12-16 | E155: 3 | F155: 168.64 | AA155: 10384 | AB155: BERGS | AC155: 3 | AD155: 2013-12-16 | AE155: 3 | AF155: 168.64
A156: 10385 | B156: SPLIR | C156: 1 | D156: 2013-12-17 | E156: 2 | F156: 30.96 | AA156: 10385 | AB156: SPLIR | AC156: 1 | AD156: 2013-12-17 | AE156: 2 | AF156: 30.96
A157: 10386 | B157: FAMIA | C157: 9 | D157: 2013-12-18 | E157: 3 | F157: 13.99 | AA157: 10386 | AB157: FAMIA | AC157: 9 | AD157: 2013-12-18 | AE157: 3 | AF157: 13.99
A158: 10387 | B158: SANTG | C158: 1 | D158: 2013-12-18 | E158: 2 | F158: 93.63 | AA158: 10387 | AB158: SANTG | AC158: 1 | AD158: 2013-12-18 | AE158: 2 | AF158: 93.63
A159: 10388 | B159: SEVES | C159: 2 | D159: 2013-12-19 | E159: 1 | F159: 34.86 | AA159: 10388 | AB159: SEVES | AC159: 2 | AD159: 2013-12-19 | AE159: 1 | AF159: 34.86
A160: 10389 | B160: BOTTM | C160: 4 | D160: 2013-12-20 | E160: 2 | F160: 47.42 | AA160: 10389 | AB160: BOTTM | AC160: 4 | AD160: 2013-12-20 | AE160: 2 | AF160: 47.42
A161: 10390 | B161: ERNSH | C161: 6 | D161: 2013-12-23 | E161: 1 | F161: 126.38 | AA161: 10390 | AB161: ERNSH | AC161: 6 | AD161: 2013-12-23 | AE161: 1 | AF161: 126.38
A162: 10391 | B162: DRACD | C162: 3 | D162: 2013-12-23 | E162: 3 | F162: 5.45 | AA162: 10391 | AB162: DRACD | AC162: 3 | AD162: 2013-12-23 | AE162: 3 | AF162: 5.45
A163: 10392 | B163: PICCO | C163: 2 | D163: 2013-12-24 | E163: 3 | F163: 122.46 | AA163: 10392 | AB163: PICCO | AC163: 2 | AD163: 2013-12-24 | AE163: 3 | AF163: 122.46
A164: 10393 | B164: SAVEA | C164: 1 | D164: 2013-12-25 | E164: 3 | F164: 126.56 | AA164: 10393 | AB164: SAVEA | AC164: 1 | AD164: 2013-12-25 | AE164: 3 | AF164: 126.56
A165: 10394 | B165: HUNGC | C165: 1 | D165: 2013-12-25 | E165: 3 | F165: 30.34 | AA165: 10394 | AB165: HUNGC | AC165: 1 | AD165: 2013-12-25 | AE165: 3 | AF165: 30.34
A166: 10395 | B166: HILAA | C166: 6 | D166: 2013-12-26 | E166: 1 | F166: 184.41 | AA166: 10395 | AB166: HILAA | AC166: 6 | AD166: 2013-12-26 | AE166: 1 | AF166: 184.41
A167: 10396 | B167: FRANK | C167: 1 | D167: 2013-12-27 | E167: 3 | F167: 135.35 | AA167: 10396 | AB167: FRANK | AC167: 1 | AD167: 2013-12-27 | AE167: 3 | AF167: 135.35
A168: 10397 | B168: PRINI | C168: 5 | D168: 2013-12-27 | E168: 1 | F168: 60.26 | AA168: 10397 | AB168: PRINI | AC168: 5 | AD168: 2013-12-27 | AE168: 1 | AF168: 60.26
A169: 10398 | B169: SAVEA | C169: 2 | D169: 2013-12-30 | E169: 3 | F169: 89.16 | AA169: 10398 | AB169: SAVEA | AC169: 2 | AD169: 2013-12-30 | AE169: 3 | AF169: 89.16
A170: 10399 | B170: VAFFE | C170: 8 | D170: 2013-12-31 | E170: 3 | F170: 27.36 | AA170: 10399 | AB170: VAFFE | AC170: 8 | AD170: 2013-12-31 | AE170: 3 | AF170: 27.36
A171: 10400 | B171: EASTC | C171: 1 | D171: 2014-01-01 | E171: 3 | F171: 83.93 | AA171: 10400 | AB171: EASTC | AC171: 1 | AD171: 2014-01-01 | AE171: 3 | AF171: 83.93
A172: 10401 | B172: RATTC | C172: 1 | D172: 2014-01-01 | E172: 1 | F172: 12.51 | AA172: 10401 | AB172: RATTC | AC172: 1 | AD172: 2014-01-01 | AE172: 1 | AF172: 12.51
A173: 10402 | B173: ERNSH | C173: 8 | D173: 2014-01-02 | E173: 2 | F173: 67.88 | AA173: 10402 | AB173: ERNSH | AC173: 8 | AD173: 2014-01-02 | AE173: 2 | AF173: 67.88
A174: 10403 | B174: ERNSH | C174: 4 | D174: 2014-01-03 | E174: 3 | F174: 73.79 | AA174: 10403 | AB174: ERNSH | AC174: 4 | AD174: 2014-01-03 | AE174: 3 | AF174: 73.79
A175: 10404 | B175: MAGAA | C175: 2 | D175: 2014-01-03 | E175: 1 | F175: 155.97 | AA175: 10404 | AB175: MAGAA | AC175: 2 | AD175: 2014-01-03 | AE175: 1 | AF175: 155.97
A176: 10405 | B176: LINOD | C176: 1 | D176: 2014-01-06 | E176: 1 | F176: 34.82 | AA176: 10405 | AB176: LINOD | AC176: 1 | AD176: 2014-01-06 | AE176: 1 | AF176: 34.82
A177: 10406 | B177: QUEEN | C177: 7 | D177: 2014-01-07 | E177: 1 | F177: 108.04 | AA177: 10406 | AB177: QUEEN | AC177: 7 | AD177: 2014-01-07 | AE177: 1 | AF177: 108.04
A178: 10407 | B178: OTTIK | C178: 2 | D178: 2014-01-07 | E178: 2 | F178: 91.48 | AA178: 10407 | AB178: OTTIK | AC178: 2 | AD178: 2014-01-07 | AE178: 2 | AF178: 91.48
A179: 10408 | B179: FOLIG | C179: 8 | D179: 2014-01-08 | E179: 1 | F179: 11.26 | AA179: 10408 | AB179: FOLIG | AC179: 8 | AD179: 2014-01-08 | AE179: 1 | AF179: 11.26
A180: 10409 | B180: OCEAN | C180: 3 | D180: 2014-01-09 | E180: 1 | F180: 29.83 | AA180: 10409 | AB180: OCEAN | AC180: 3 | AD180: 2014-01-09 | AE180: 1 | AF180: 29.83
A181: 10410 | B181: BOTTM | C181: 3 | D181: 2014-01-10 | E181: 3 | F181: 2.4 | AA181: 10410 | AB181: BOTTM | AC181: 3 | AD181: 2014-01-10 | AE181: 3 | AF181: 2.4
A182: 10411 | B182: BOTTM | C182: 9 | D182: 2014-01-10 | E182: 3 | F182: 23.65 | AA182: 10411 | AB182: BOTTM | AC182: 9 | AD182: 2014-01-10 | AE182: 3 | AF182: 23.65
A183: 10412 | B183: WARTH | C183: 8 | D183: 2014-01-13 | E183: 2 | F183: 3.77 | AA183: 10412 | AB183: WARTH | AC183: 8 | AD183: 2014-01-13 | AE183: 2 | AF183: 3.77
A184: 10413 | B184: LAMAI | C184: 3 | D184: 2014-01-14 | E184: 2 | F184: 95.66 | AA184: 10413 | AB184: LAMAI | AC184: 3 | AD184: 2014-01-14 | AE184: 2 | AF184: 95.66
A185: 10414 | B185: FAMIA | C185: 2 | D185: 2014-01-14 | E185: 3 | F185: 21.48 | AA185: 10414 | AB185: FAMIA | AC185: 2 | AD185: 2014-01-14 | AE185: 3 | AF185: 21.48
A186: 10415 | B186: HUNGC | C186: 3 | D186: 2014-01-15 | E186: 1 | F186: 0.2 | AA186: 10415 | AB186: HUNGC | AC186: 3 | AD186: 2014-01-15 | AE186: 1 | AF186: 0.2
A187: 10416 | B187: WARTH | C187: 8 | D187: 2014-01-16 | E187: 3 | F187: 22.72 | AA187: 10416 | AB187: WARTH | AC187: 8 | AD187: 2014-01-16 | AE187: 3 | AF187: 22.72
A188: 10417 | B188: SIMOB | C188: 4 | D188: 2014-01-16 | E188: 3 | F188: 70.29 | AA188: 10417 | AB188: SIMOB | AC188: 4 | AD188: 2014-01-16 | AE188: 3 | AF188: 70.29
A189: 10418 | B189: QUICK | C189: 4 | D189: 2014-01-17 | E189: 1 | F189: 17.55 | AA189: 10418 | AB189: QUICK | AC189: 4 | AD189: 2014-01-17 | AE189: 1 | AF189: 17.55
A190: 10419 | B190: RICSU | C190: 4 | D190: 2014-01-20 | E190: 2 | F190: 137.35 | AA190: 10419 | AB190: RICSU | AC190: 4 | AD190: 2014-01-20 | AE190: 2 | AF190: 137.35
A191: 10420 | B191: WELLI | C191: 3 | D191: 2014-01-21 | E191: 1 | F191: 44.12 | AA191: 10420 | AB191: WELLI | AC191: 3 | AD191: 2014-01-21 | AE191: 1 | AF191: 44.12
A192: 10421 | B192: QUEDE | C192: 8 | D192: 2014-01-21 | E192: 1 | F192: 99.23 | AA192: 10421 | AB192: QUEDE | AC192: 8 | AD192: 2014-01-21 | AE192: 1 | AF192: 99.23
A193: 10422 | B193: FRANS | C193: 2 | D193: 2014-01-22 | E193: 1 | F193: 3.02 | AA193: 10422 | AB193: FRANS | AC193: 2 | AD193: 2014-01-22 | AE193: 1 | AF193: 3.02
A194: 10423 | B194: GOURL | C194: 6 | D194: 2014-01-23 | E194: 3 | F194: 24.5 | AA194: 10423 | AB194: GOURL | AC194: 6 | AD194: 2014-01-23 | AE194: 3 | AF194: 24.5
A195: 10424 | B195: MEREP | C195: 7 | D195: 2014-01-23 | E195: 2 | F195: 370.61 | AA195: 10424 | AB195: MEREP | AC195: 7 | AD195: 2014-01-23 | AE195: 2 | AF195: 370.61
A196: 10425 | B196: LAMAI | C196: 6 | D196: 2014-01-24 | E196: 2 | F196: 7.93 | AA196: 10425 | AB196: LAMAI | AC196: 6 | AD196: 2014-01-24 | AE196: 2 | AF196: 7.93
A197: 10426 | B197: GALED | C197: 4 | D197: 2014-01-27 | E197: 1 | F197: 18.69 | AA197: 10426 | AB197: GALED | AC197: 4 | AD197: 2014-01-27 | AE197: 1 | AF197: 18.69
A198: 10427 | B198: PICCO | C198: 4 | D198: 2014-01-27 | E198: 2 | F198: 31.29 | AA198: 10427 | AB198: PICCO | AC198: 4 | AD198: 2014-01-27 | AE198: 2 | AF198: 31.29
A199: 10428 | B199: REGGC | C199: 7 | D199: 2014-01-28 | E199: 1 | F199: 11.09 | AA199: 10428 | AB199: REGGC | AC199: 7 | AD199: 2014-01-28 | AE199: 1 | AF199: 11.09
A200: 10429 | B200: HUNGO | C200: 3 | D200: 2014-01-29 | E200: 2 | F200: 56.63 | AA200: 10429 | AB200: HUNGO | AC200: 3 | AD200: 2014-01-29 | AE200: 2 | AF200: 56.63
A201: 10430 | B201: ERNSH | C201: 4 | D201: 2014-01-30 | E201: 1 | F201: 458.78 | AA201: 10430 | AB201: ERNSH | AC201: 4 | AD201: 2014-01-30 | AE201: 1 | AF201: 458.78
A202: 10431 | B202: BOTTM | C202: 4 | D202: 2014-01-30 | E202: 2 | F202: 44.17 | AA202: 10431 | AB202: BOTTM | AC202: 4 | AD202: 2014-01-30 | AE202: 2 | AF202: 44.17
A203: 10432 | B203: SPLIR | C203: 3 | D203: 2014-01-31 | E203: 2 | F203: 4.34 | AA203: 10432 | AB203: SPLIR | AC203: 3 | AD203: 2014-01-31 | AE203: 2 | AF203: 4.34
A204: 10433 | B204: PRINI | C204: 3 | D204: 2014-02-03 | E204: 3 | F204: 73.83 | AA204: 10433 | AB204: PRINI | AC204: 3 | AD204: 2014-02-03 | AE204: 3 | AF204: 73.83
A205: 10434 | B205: FOLKO | C205: 3 | D205: 2014-02-03 | E205: 2 | F205: 17.92 | AA205: 10434 | AB205: FOLKO | AC205: 3 | AD205: 2014-02-03 | AE205: 2 | AF205: 17.92
A206: 10435 | B206: CONSH | C206: 8 | D206: 2014-02-04 | E206: 2 | F206: 9.21 | AA206: 10435 | AB206: CONSH | AC206: 8 | AD206: 2014-02-04 | AE206: 2 | AF206: 9.21
A207: 10436 | B207: BLONP | C207: 3 | D207: 2014-02-05 | E207: 2 | F207: 156.66 | AA207: 10436 | AB207: BLONP | AC207: 3 | AD207: 2014-02-05 | AE207: 2 | AF207: 156.66
A208: 10437 | B208: WARTH | C208: 8 | D208: 2014-02-05 | E208: 1 | F208: 19.97 | AA208: 10437 | AB208: WARTH | AC208: 8 | AD208: 2014-02-05 | AE208: 1 | AF208: 19.97
... 640 more rows
